Workbook

Sheet raw_data_postprocessed
A1: Datum | B1: Source temperature [C] | C1: Station 1, Forward temperature [Celsius] | D1: Station 1, Volumetric flow [m3/h] | E1: Station 2, Forward temperature [Celsius] | F1: Station 2, Volumetric flow [m3/h] | G1: Station 4, Forward temperature [Celsius] | H1: Station 4, Volumetric flow [m3/h] | I1: Station 5, Forward temperature [Celsius] | J1: Station 5, Volumetric flow [m3/h] | K1: Delta_T1 | L1: Delta_T2 | M1: Delta_T3 | N1: Delta_T4 | O1: Delta_T5 | P1: Station 1, Mass flow [kg/s] | Q1: Station 2, Mass flow [kg/s] | R1: Station 4, Mass flow [kg/s] | S1: Station 5, Mass flow [kg/s] | T1: Q1[J/s] | U1: Q2[J/s] | V1: Q4[J/s] | W1: Q5[J/s] | X1: New Tsource, 1 | Y1: New source,2 | Z1: New source,4 | AA1: New source,5 | AB1: source unique | AC1: new source | AD1: new Q1 | AE1: new Q2 | AF1: new Q4 | AG1: new Q5 | AH1: =SUM(AH2:AH15199)/1000000 -> 229.664428 | AI1: =SUM(AI2:AI15199)/1000000 -> 587.6955437 | AJ1: =SUM(AJ2:AJ15199)/1000000 -> 111.6465097 | AK1: =SUM(AK2:AK15199)/1000000 -> 49.52299502 | AM1: =SUM(AM2:AM15199)/1000000 -> 1411.600203
A2: 2020-01-01T04:45:00 | B2: 74.1 | C2: 73 | D2: 8.94 | E2: 73 | F2: 8.59 | G2: 72 | H2: 6.96 | I2: 68.25 | J2: 0.254 | K2: 1.1 | L2: 1.1 | M2: 57.1 | N2: 2.1 | O2: 5.85 | P2: =D2*1000/3600 -> 2.483333333 | Q2: =F2*1000/3600 -> 2.386111111 | R2: =H2*1000/3600 -> 1.933333333 | S2: =J2*1000/3600 -> 0.07055555556 | T2: =P2*4180*K2 -> 11418.36667 | U2: =Q2*4180*L2 -> 10971.33889 | V2: =R2*4180*N2 -> 16970.8 | W2: =S2*4180*O2 -> 1725.295 | X2: =(T2/(P2*4180))+60 -> 61.1 | Y2: =(U2/(Q2*4180))+60 -> 61.1 | Z2: =(V2/(R2*4180))+60 -> 62.1 | AA2: =(W2/(S2*4180))+60 -> 65.85 | AB2: =B2 -> 74.1 | AC2: =MAX(X2:AA2) -> 65.85 | AD2: =P2*4180*(AC2-60) -> 60724.95 | AE2: =Q2*4180*($AC$2-60) -> 58347.575 | AF2: =R2*4180*($AC$2-60) -> 47275.8 | AG2: =S2*4180*($AC$2-60) -> 1725.295 | AH2: =AD2-T2 -> 49306.58333 | AI2: =AE2-U2 -> 47376.23611 | AJ2: =AF2-V2 -> 30305 | AK2: =AG2-W2 -> 0 | AL2: =AB2-AC2 -> 8.25 | AM2: =P2*4180*(AB2-AC2) -> 85637.75
A3: 2020-01-01T05:00:00 | B3: 73.9 | C3: 73 | D3: 9.03 | E3: 73 | F3: 8.63 | G3: 72 | H3: 6.93 | I3: 67 | J3: 0.265 | K3: 0.9 | L3: 0.9 | M3: 56.9 | N3: 1.9 | O3: 6.9 | P3: =D3*1000/3600 -> 2.508333333 | Q3: =F3*1000/3600 -> 2.397222222 | R3: =H3*1000/3600 -> 1.925 | S3: =J3*1000/3600 -> 0.07361111111 | T3: =P3*4180*K3 -> 9436.35 | U3: =Q3*4180*L3 -> 9018.35 | V3: =R3*4180*N3 -> 15288.35 | W3: =S3*4180*O3 -> 2123.091667 | X3: =(T3/(P3*4180))+60 -> 60.9 | Y3: =(U3/(Q3*4180))+60 -> 60.9 | Z3: 61.9 | AA3: =(W3/(S3*4180))+60 -> 66.9 | AB3: =B3 -> 73.9 | AC3: =MAX(X3:AA3) -> 66.9 | AD3: =P3*4180*(AC3-60) -> 72345.35 | AE3: =Q3*4180*($AC$2-60) -> 58619.275 | AF3: =R3*4180*($AC$2-60) -> 47072.025 | AG3: 1800.0125 | AH3: =AD3-T3 -> 62909 | AI3: =AE3-U3 -> 49600.925 | AJ3: =AF3-V3 -> 31783.675 | AK3: =AG3-W3 -> -323.0791667 | AL3: =AB3-AC3 -> 7 | AM3: =P3*4180*(AB3-AC3) -> 73393.83333
A4: 2020-01-01T05:15:00 | B4: 74 | C4: 73 | D4: 8.95 | E4: 73 | F4: 8.45 | G4: 72 | H4: 6.92 | I4: 68 | J4: 0.274 | K4: 1 | L4: 1 | M4: 57 | N4: 2 | O4: 6 | P4: 2.486111111 | Q4: 2.347222222 | R4: 1.922222222 | S4: 0.07611111111 | T4: 10391.94444 | U4: 9811.388889 | V4: =R4*4180*N4 -> 16069.77778 | W4: 1908.866667 | X4: 61 | Y4: 61 | Z4: 62 | AA4: 66 | AB4: 74 | AC4: 66 | AD4: 62351.66667 | AE4: 57396.625 | AF4: 47004.1 | AG4: 1861.145 | AH4: 51959.72222 | AI4: 47585.23611 | AJ4: 30934.32222 | AK4: -47.72166667 | AL4: 8 | AM4: 83135.55556
A5: 2020-01-01T05:30:00 | B5: 73.8 | C5: 73 | D5: 8.98 | E5: 73 | F5: 8.46 | G5: 73 | H5: 6.91 | I5: 69 | J5: 0.27 | K5: 0.8 | L5: 0.8 | M5: 56.8 | N5: 0.8 | O5: 4.8 | P5: 2.494444444 | Q5: 2.35 | R5: 1.919444444 | S5: 0.075 | T5: 8341.422222 | U5: 7858.4 | V5: =R5*4180*N5 -> 6418.622222 | W5: 1504.8 | X5: 60.8 | Y5: 60.8 | Z5: 60.8 | AA5: 64.8 | AB5: 73.8 | AC5: 64.8 | AD5: 50048.53333 | AE5: 57464.55 | AF5: 46936.175 | AG5: 1833.975 | AH5: 41707.11111 | AI5: 49606.15 | AJ5: 40517.55278 | AK5: 329.175 | AL5: 9 | AM5: 93841
A6: 2020-01-01T05:45:00 | B6: 74 | C6: 73 | D6: 9.05 | E6: 73 | F6: 8.3 | G6: 72 | H6: 6.9 | I6: 71 | J6: 1.558 | K6: 1 | L6: 1 | M6: 57 | N6: 2 | O6: 3 | P6: 2.513888889 | Q6: 2.305555556 | R6: 1.916666667 | S6: 0.4327777778 | T6: 10508.05556 | U6: 9637.222222 | V6: 16023.33333 | W6: 5427.033333 | X6: 61 | Y6: 61 | Z6: 62 | AA6: 63 | AB6: 74 | AC6: 63 | AD6: 31524.16667 | AE6: 56377.75 | AF6: 46868.25 | AG6: 10582.715 | AH6: 21016.11111 | AI6: 46740.52778 | AJ6: 30844.91667 | AK6: 5155.681667 | AL6: 11 | AM6: 115588.6111
A7: 2020-01-01T06:00:00 | B7: 73.7 | C7: 73 | D7: 9.13 | E7: 73 | F7: 8.22 | G7: 72 | H7: 6.96 | I7: 72 | J7: 2.314 | K7: 0.7 | L7: 0.7 | M7: 56.7 | N7: 1.7 | O7: 1.7 | P7: 2.536111111 | Q7: 2.283333333 | R7: 1.933333333 | S7: 0.6427777778 | T7: 7420.661111 | U7: 6681.033333 | V7: 13738.26667 | W7: 4567.578889 | X7: 60.7 | Y7: 60.7 | Z7: 61.7 | AA7: 61.7 | AB7: 73.7 | AC7: 61.7 | AD7: 18021.60556 | AE7: 55834.35 | AF7: 47275.8 | AG7: 15717.845 | AH7: 10600.94444 | AI7: 49153.31667 | AJ7: 33537.53333 | AK7: 11150.26611 | AL7: 12 | AM7: 127211.3333
A8: 2020-01-01T06:15:00 | B8: 73.9 | C8: 73 | D8: 9.32 | E8: 73 | F8: 8.18 | G8: 72 | H8: 2.23 | I8: 72 | J8: 2.376 | K8: 0.9 | L8: 0.9 | M8: 56.9 | N8: 1.9 | O8: 1.9 | P8: 2.588888889 | Q8: 2.272222222 | R8: 0.6194444444 | S8: 0.66 | T8: 9739.4 | U8: 8548.1 | V8: 4919.627778 | W8: 5241.72 | X8: 60.9 | Y8: 60.9 | Z8: 61.9 | AA8: 61.9 | AB8: 73.9 | AC8: 61.9 | AD8: 20560.95556 | AE8: 55562.65 | AF8: 15147.275 | AG8: 16138.98 | AH8: 10821.55556 | AI8: 47014.55 | AJ8: 10227.64722 | AK8: 10897.26 | AL8: 12 | AM8: 129858.6667
A9: 2020-01-01T06:30:00 | B9: 74.2 | C9: 73 | D9: 9.09 | E9: 73 | F9: 8.38 | G9: 72 | H9: 2.11 | I9: 72 | J9: 2.345 | K9: 1.2 | L9: 1.2 | M9: 57.2 | N9: 2.2 | O9: 2.2 | P9: 2.525 | Q9: 2.327777778 | R9: 0.5861111111 | S9: 0.6513888889 | T9: 12665.4 | U9: 11676.13333 | V9: 5389.877778 | W9: 5990.172222 | X9: 61.2 | Y9: 61.2 | Z9: 62.2 | AA9: 62.2 | AB9: 74.2 | AC9: 62.2 | AD9: 23219.9 | AE9: 56921.15 | AF9: 14332.175 | AG9: 15928.4125 | AH9: 10554.5 | AI9: 45245.01667 | AJ9: 8942.297222 | AK9: 9938.240278 | AL9: 12 | AM9: 126654
A10: 2020-01-01T06:45:00 | B10: 73.9 | C10: 73 | D10: 9.05 | E10: 72 | F10: 8.69 | G10: 72 | H10: 2.36 | I10: 72 | J10: 2.345 | K10: 0.9 | L10: 1.9 | M10: 56.9 | N10: 1.9 | O10: 1.9 | P10: 2.513888889 | Q10: 2.413888889 | R10: 0.6555555556 | S10: 0.6513888889 | T10: 9457.25 | U10: 19171.10556 | V10: 5206.422222 | W10: 5173.330556 | X10: 60.9 | Y10: 61.9 | Z10: 61.9 | AA10: 61.9 | AB10: 73.9 | AC10: 61.9 | AD10: 19965.30556 | AE10: 59026.825 | AF10: 16030.3 | AG10: 15928.4125 | AH10: 10508.05556 | AI10: 39855.71944 | AJ10: 10823.87778 | AK10: 10755.08194 | AL10: 12 | AM10: 126096.6667
A11: 2020-01-01T07:00:00 | B11: 74.2 | C11: 73 | D11: 8.87 | E11: 73 | F11: 8.51 | G11: 72 | H11: 2.46 | I11: 72 | J11: 2.283 | K11: 1.2 | L11: 1.2 | M11: 57.2 | N11: 2.2 | O11: 2.2 | P11: 2.463888889 | Q11: 2.363888889 | R11: 0.6833333333 | S11: 0.6341666667 | T11: 12358.86667 | U11: 11857.26667 | V11: 6283.933333 | W11: 5831.796667 | X11: 61.2 | Y11: 61.2 | Z11: 62.2 | AA11: 62.2 | AB11: 74.2 | AC11: 62.2 | AD11: 22657.92222 | AE11: 57804.175 | AF11: 16709.55 | AG11: 15507.2775 | AH11: 10299.05556 | AI11: 45946.90833 | AJ11: 10425.61667 | AK11: 9675.480833 | AL11: 12 | AM11: 123588.6667
A12: 2020-01-01T07:15:00 | B12: 73.8 | C12: 73 | D12: 9.11 | E12: 73 | F12: 9.2 | G12: 72 | H12: 2.51 | I12: 72 | J12: 2.282 | K12: 0.8 | L12: 0.8 | M12: 56.8 | N12: 1.8 | O12: 1.8 | P12: 2.530555556 | Q12: 2.555555556 | R12: 0.6972222222 | S12: 0.6338888889 | T12: 8462.177778 | U12: 8545.777778 | V12: 5245.9 | W12: 4769.38 | X12: 60.8 | Y12: 60.8 | Z12: 61.8 | AA12: 61.8 | AB12: 73.8 | AC12: 61.8 | AD12: 19039.9 | AE12: 62491 | AF12: 17049.175 | AG12: 15500.485 | AH12: 10577.72222 | AI12: 53945.22222 | AJ12: 11803.275 | AK12: 10731.105 | AL12: 12 | AM12: 126932.6667
A13: 2020-01-01T07:30:00 | B13: 73.9 | C13: 73 | D13: 9.28 | E13: 73 | F13: 9.28 | G13: 72 | H13: 2.53 | I13: 72 | J13: 1.595 | K13: 0.9 | L13: 0.9 | M13: 56.9 | N13: 1.9 | O13: 1.9 | P13: 2.577777778 | Q13: 2.577777778 | R13: 0.7027777778 | S13: 0.4430555556 | T13: 9697.6 | U13: 9697.6 | V13: 5581.461111 | W13: 3518.747222 | X13: 60.9 | Y13: 60.9 | Z13: 61.9 | AA13: 61.9 | AB13: 73.9 | AC13: 61.9 | AD13: 20472.71111 | AE13: 63034.4 | AF13: 17185.025 | AG13: 10834.0375 | AH13: 10775.11111 | AI13: 53336.8 | AJ13: 11603.56389 | AK13: 7315.290278 | AL13: 12 | AM13: 129301.3333
A14: 2020-01-01T07:45:00 | B14: 74.2 | C14: 73 | D14: 9.49 | E14: 73 | F14: 9.59 | G14: 72 | H14: 2.52 | I14: 72 | J14: 1.286 | K14: 1.2 | L14: 1.2 | M14: 57.2 | N14: 2.2 | O14: 2.2 | P14: 2.636111111 | Q14: 2.663888889 | R14: 0.7 | S14: 0.3572222222 | T14: 13222.73333 | U14: 13362.06667 | V14: 6437.2 | W14: 3285.015556 | X14: 61.2 | Y14: 61.2 | Z14: 62.2 | AA14: 62.2 | AB14: 74.2 | AC14: 62.2 | AD14: 24241.67778 | AE14: 65140.075 | AF14: 17117.1 | AG14: 8735.155 | AH14: 11018.94444 | AI14: 51778.00833 | AJ14: 10679.9 | AK14: 5450.139444 | AL14: 12 | AM14: 132227.3333
A15: 2020-01-01T08:00:00 | B15: 73.9 | C15: 73 | D15: 9.6 | E15: 73 | F15: 9.52 | G15: 72 | H15: 2.53 | I15: 72 | J15: 1.124 | K15: 0.9 | L15: 0.9 | M15: 56.9 | N15: 1.9 | O15: 1.9 | P15: 2.666666667 | Q15: 2.644444444 | R15: 0.7027777778 | S15: 0.3122222222 | T15: 10032 | U15: 9948.4 | V15: 5581.461111 | W15: 2479.668889 | X15: 60.9 | Y15: 60.9 | Z15: 61.9 | AA15: 61.9 | AB15: 73.9 | AC15: 61.9 | AD15: 21178.66667 | AE15: 64664.6 | AF15: 17185.025 | AG15: 7634.77 | AH15: 11146.66667 | AI15: 54716.2 | AJ15: 11603.56389 | AK15: 5155.101111 | AL15: 12 | AM15: 133760
A16: 2020-01-01T08:15:00 | B16: 74 | C16: 73 | D16: 9.27 | E16: 73 | F16: 9.75 | G16: 72 | H16: 2.49 | I16: 72 | J16: 1.241 | K16: 1 | L16: 1 | M16: 57 | N16: 2 | O16: 2 | P16: 2.575 | Q16: 2.708333333 | R16: 0.6916666667 | S16: 0.3447222222 | T16: 10763.5 | U16: 11320.83333 | V16: 5782.333333 | W16: 2881.877778 | X16: 61 | Y16: 61 | Z16: 62 | AA16: 62 | AB16: 74 | AC16: 62 | AD16: 21527 | AE16: 66226.875 | AF16: 16913.325 | AG16: 8429.4925 | AH16: 10763.5 | AI16: 54906.04167 | AJ16: 11130.99167 | AK16: 5547.614722 | AL16: 12 | AM16: 129162
A17: 2020-01-01T08:30:00 | B17: 73.7 | C17: 73 | D17: 9.21 | E17: 73 | F17: 9.33 | G17: 72 | H17: 2.5 | I17: 72 | J17: 1.535 | K17: 0.7 | L17: 0.7 | M17: 56.7 | N17: 1.7 | O17: 1.7 | P17: 2.558333333 | Q17: 2.591666667 | R17: 0.6944444444 | S17: 0.4263888889 | T17: 7485.683333 | U17: 7583.216667 | V17: 4934.722222 | W17: 3029.919444 | X17: 60.7 | Y17: 60.7 | Z17: 61.7 | AA17: 61.7 | AB17: 73.7 | AC17: 61.7 | AD17: 18179.51667 | AE17: 63374.025 | AF17: 16981.25 | AG17: 10426.4875 | AH17: 10693.83333 | AI17: 55790.80833 | AJ17: 12046.52778 | AK17: 7396.568056 | AL17: 12 | AM17: 128326
A18: 2020-01-01T08:45:00 | B18: 74.1 | C18: 73 | D18: 9.34 | E18: 73 | F18: 9.24 | G18: 72 | H18: 2.51 | I18: 71 | J18: 1.571 | K18: 1.1 | L18: 1.1 | M18: 57.1 | N18: 2.1 | O18: 3.1 | P18: 2.594444444 | Q18: 2.566666667 | R18: 0.6972222222 | S18: 0.4363888889 | T18: 11929.25556 | U18: 11801.53333 | V18: 6120.216667 | W18: 5654.727222 | X18: 61.1 | Y18: =(U18/(Q18*4180))+60 -> 61.1 | Z18: 62.1 | AA18: 63.1 | AB18: 74.1 | AC18: 63.1 | AD18: 33618.81111 | AE18: 62762.7 | AF18: 17049.175 | AG18: 10671.0175 | AH18: 21689.55556 | AI18: 50961.16667 | AJ18: 10928.95833 | AK18: 5016.290278 | AL18: 11 | AM18: 119292.5556
A19: 2020-01-01T09:00:00 | B19: 73.7 | C19: 72 | D19: 9.69 | E19: 73 | F19: 9.33 | G19: 72 | H19: 2.49 | I19: 72 | J19: 1.622 | K19: 1.7 | L19: 0.7 | M19: 56.7 | N19: 1.7 | O19: 1.7 | P19: 2.691666667 | Q19: 2.591666667 | R19: 0.6916666667 | S19: 0.4505555556 | T19: 19126.98333 | U19: 7583.216667 | V19: 4914.983333 | W19: 3201.647778 | X19: 61.7 | Y19: 60.7 | Z19: 61.7 | AA19: 61.7 | AB19: 73.7 | AC19: 61.7 | AD19: 19126.98333 | AE19: 63374.025 | AF19: 16913.325 | AG19: 11017.435 | AH19: 3.274180926e-11 | AI19: 55790.80833 | AJ19: 11998.34167 | AK19: 7815.787222 | AL19: 12 | AM19: 135014
A20: 2020-01-01T09:15:00 | B20: 74.1 | C20: 73 | D20: 9.57 | E20: 73 | F20: 9.97 | G20: 72 | H20: 2.5 | I20: 72 | J20: 1.689 | K20: 1.1 | L20: 1.1 | M20: 57.1 | N20: 2.1 | O20: 2.1 | P20: 2.658333333 | Q20: 2.769444444 | R20: 0.6944444444 | S20: 0.4691666667 | T20: 12223.01667 | U20: 12733.90556 | V20: 6095.833333 | W20: 4118.345 | X20: 61.1 | Y20: 61.1 | Z20: 62.1 | AA20: 62.1 | AB20: 74.1 | AC20: 62.1 | AD20: 23334.85 | AE20: 67721.225 | AF20: 16981.25 | AG20: 11472.5325 | AH20: 11111.83333 | AI20: 54987.31944 | AJ20: 10885.41667 | AK20: 7354.1875 | AL20: 12 | AM20: 133342
A21: 2020-01-01T09:30:00 | B21: 74 | C21: 73 | D21: 9.56 | E21: 73 | F21: 10.1 | G21: 72 | H21: 2.43 | I21: 72 | J21: 1.601 | K21: 1 | L21: 1 | M21: 57 | N21: 2 | O21: 2 | P21: 2.655555556 | Q21: 2.805555556 | R21: 0.675 | S21: 0.4447222222 | T21: 11100.22222 | U21: 11727.22222 | V21: 5643 | W21: 3717.877778 | X21: 61 | Y21: 61 | Z21: 62 | AA21: 62 | AB21: 74 | AC21: 62 | AD21: 22200.44444 | AE21: 68604.25 | AF21: 16505.775 | AG21: 10874.7925 | AH21: 11100.22222 | AI21: 56877.02778 | AJ21: 10862.775 | AK21: 7156.914722 | AL21: 12 | AM21: 133202.6667
A22: 2020-01-01T09:45:00 | B22: 74 | C22: 73 | D22: 9.68 | E22: 73 | F22: 9.62 | G22: 72 | H22: 2.37 | I22: 72 | J22: 1.466 | K22: 1 | L22: 1 | M22: 57 | N22: 2 | O22: 2 | P22: 2.688888889 | Q22: 2.672222222 | R22: 0.6583333333 | S22: 0.4072222222 | T22: 11239.55556 | U22: 11169.88889 | V22: 5503.666667 | W22: 3404.377778 | X22: 61 | Y22: 61 | Z22: 62 | AA22: 62 | AB22: 74 | AC22: 62 | AD22: 22479.11111 | AE22: 65343.85 | AF22: 16098.225 | AG22: 9957.805 | AH22: 11239.55556 | AI22: 54173.96111 | AJ22: 10594.55833 | AK22: 6553.427222 | AL22: 12 | AM22: 134874.6667
A23: 2020-01-01T10:00:00 | B23: 74 | C23: 73 | D23: 9.98 | E23: 73 | F23: 10.12 | G23: 72 | H23: 2.39 | I23: 71 | J23: 1.307 | K23: 1 | L23: 1 | M23: 57 | N23: 2 | O23: 3 | P23: 2.772222222 | Q23: 2.811111111 | R23: 0.6638888889 | S23: 0.3630555556 | T23: 11587.88889 | U23: 11750.44444 | V23: 5550.111111 | W23: 4552.716667 | X23: 61 | Y23: 61 | Z23: 62 | AA23: 63 | AB23: 74 | AC23: 63 | AD23: 34763.66667 | AE23: 68740.1 | AF23: 16234.075 | AG23: 8877.7975 | AH23: 23175.77778 | AI23: 56989.65556 | AJ23: 10683.96389 | AK23: 4325.080833 | AL23: 11 | AM23: 127466.7778
A24: 2020-01-01T10:15:00 | B24: 74.1 | C24: 73 | D24: 9.88 | E24: 73 | F24: 9.89 | G24: 72 | H24: 2.39 | I24: 72 | J24: 0.898 | K24: 1.1 | L24: 1.1 | M24: 57.1 | N24: 2.1 | O24: 2.1 | P24: 2.744444444 | Q24: 2.747222222 | R24: 0.6638888889 | S24: 0.2494444444 | T24: 12618.95556 | U24: 12631.72778 | V24: 5827.616667 | W24: 2189.623333 | X24: 61.1 | Y24: 61.1 | Z24: 62.1 | AA24: 62.1 | AB24: 74.1 | AC24: 62.1 | AD24: 24090.73333 | AE24: 67177.825 | AF24: 16234.075 | AG24: 6099.665 | AH24: 11471.77778 | AI24: 54546.09722 | AJ24: 10406.45833 | AK24: 3910.041667 | AL24: 12 | AM24: 137661.3333
A25: 2020-01-01T10:30:00 | B25: 74.2 | C25: 73 | D25: 9.66 | E25: 73 | F25: 9.7 | G25: 72 | H25: 2.4 | I25: 71 | J25: 0.897 | K25: 1.2 | L25: 1.2 | M25: 57.2 | N25: 2.2 | O25: 3.2 | P25: 2.683333333 | Q25: 2.694444444 | R25: 0.6666666667 | S25: 0.2491666667 | T25: 13459.6 | U25: 13515.33333 | V25: 6130.666667 | W25: 3332.853333 | X25: 61.2 | Y25: 61.2 | Z25: 62.2 | AA25: 63.2 | AB25: 74.2 | AC25: 63.2 | AD25: 35892.26667 | AE25: 65887.25 | AF25: 16302 | AG25: 6092.8725 | AH25: 22432.66667 | AI25: 52371.91667 | AJ25: 10171.33333 | AK25: 2760.019167 | AL25: 11 | AM25: 123379.6667
A26: 2020-01-01T10:45:00 | B26: 74 | C26: 73 | D26: 9.7 | E26: 73 | F26: 9.65 | G26: 72 | H26: 2.39 | I26: 72 | J26: 0.877 | K26: 1 | L26: 1 | M26: 57 | N26: 2 | O26: 2 | P26: 2.694444444 | Q26: 2.680555556 | R26: 0.6638888889 | S26: 0.2436111111 | T26: 11262.77778 | U26: 11204.72222 | V26: 5550.111111 | W26: 2036.588889 | X26: 61 | Y26: 61 | Z26: 62 | AA26: 62 | AB26: 74 | AC26: 62 | AD26: 22525.55556 | AE26: 65547.625 | AF26: 16234.075 | AG26: 5957.0225 | AH26: 11262.77778 | AI26: 54342.90278 | AJ26: 10683.96389 | AK26: 3920.433611 | AL26: 12 | AM26: 135153.3333
A27: 2020-01-01T11:00:00 | B27: 73.9 | C27: 73 | D27: 9.35 | E27: 73 | F27: 9.27 | G27: 72 | H27: 2.43 | I27: 72 | J27: 0.947 | K27: 0.9 | L27: 0.9 | M27: 57.9 | N27: 1.9 | O27: 1.9 | P27: 2.597222222 | Q27: 2.575 | R27: 0.675 | S27: 0.2630555556 | T27: 9770.75 | U27: 9687.15 | V27: 5360.85 | W27: 2089.187222 | X27: 60.9 | Y27: 60.9 | Z27: 61.9 | AA27: 61.9 | AB27: 73.9 | AC27: 61.9 | AD27: 20627.13889 | AE27: 62966.475 | AF27: 16505.775 | AG27: 6432.4975 | AH27: 10856.38889 | AI27: 53279.325 | AJ27: 11144.925 | AK27: 4343.310278 | AL27: 12 | AM27: 130276.6667
A28: 2020-01-01T11:15:00 | B28: 74.1 | C28: 73 | D28: 9.13 | E28: 73 | F28: 8.57 | G28: 72 | H28: 2.34 | I28: 72 | J28: 1.031 | K28: 1.1 | L28: 1.1 | M28: 58.1 | N28: 2.1 | O28: 2.1 | P28: 2.536111111 | Q28: 2.380555556 | R28: 0.65 | S28: 0.2863888889 | T28: 11661.03889 | U28: 10945.79444 | V28: 5705.7 | W28: 2513.921667 | X28: 61.1 | Y28: 61.1 | Z28: 62.1 | AA28: 62.1 | AB28: 74.1 | AC28: 62.1 | AD28: 22261.98333 | AE28: 58211.725 | AF28: 15894.45 | AG28: 7003.0675 | AH28: 10600.94444 | AI28: 47265.93056 | AJ28: 10188.75 | AK28: 4489.145833 | AL28: 12 | AM28: 127211.3333
A29: 2020-01-01T11:30:00 | B29: 74.4 | C29: 73 | D29: 8.75 | E29: 73 | F29: 8.15 | G29: 72 | H29: 2.37 | I29: 72 | J29: 1.031 | K29: 1.4 | L29: 1.4 | M29: 58.4 | N29: 2.4 | O29: 2.4 | P29: 2.430555556 | Q29: 2.263888889 | R29: 0.6583333333 | S29: 0.2863888889 | T29: 14223.61111 | U29: 13248.27778 | V29: 6604.4 | W29: 2873.053333 | X29: 61.4 | Y29: 61.4 | Z29: 62.4 | AA29: 62.4 | AB29: 74.4 | AC29: 62.4 | AD29: 24383.33333 | AE29: 55358.875 | AF29: 16098.225 | AG29: 7003.0675 | AH29: 10159.72222 | AI29: 42110.59722 | AJ29: 9493.825 | AK29: 4130.014167 | AL29: 12 | AM29: 121916.6667
A30: 2020-01-01T11:45:00 | B30: 74.3 | C30: 73 | D30: 8.97 | E30: 73 | F30: 7.94 | G30: 72 | H30: 2.3 | I30: 72 | J30: 0.924 | K30: 1.3 | L30: 1.3 | M30: 58.3 | N30: 2.3 | O30: 2.3 | P30: 2.491666667 | Q30: 2.205555556 | R30: 0.6388888889 | S30: 0.2566666667 | T30: 13539.71667 | U30: 11984.98889 | V30: 6142.277778 | W30: 2467.593333 | X30: 61.3 | Y30: 61.3 | Z30: 62.3 | AA30: 62.3 | AB30: 74.3 | AC30: 62.3 | AD30: 23954.88333 | AE30: 53932.45 | AF30: 15622.75 | AG30: 6276.27 | AH30: 10415.16667 | AI30: 41947.46111 | AJ30: 9480.472222 | AK30: 3808.676667 | AL30: 12 | AM30: 124982
A31: 2020-01-01T12:00:00 | B31: 74.2 | C31: 73 | D31: 8.82 | E31: 73 | F31: 7.65 | G31: 72 | H31: 2.29 | I31: 72 | J31: 1.317 | K31: 1.2 | L31: 1.2 | M31: 58.2 | N31: 2.2 | O31: 2.2 | P31: 2.45 | Q31: 2.125 | R31: 0.6361111111 | S31: 0.3658333333 | T31: 12289.2 | U31: 10659 | V31: 5849.677778 | W31: 3364.203333 | X31: 61.2 | Y31: 61.2 | Z31: 62.2 | AA31: 62.2 | AB31: 74.2 | AC31: 62.2 | AD31: 22530.2 | AE31: 51962.625 | AF31: 15554.825 | AG31: 8945.7225 | AH31: 10241 | AI31: 41303.625 | AJ31: 9705.147222 | AK31: 5581.519167 | AL31: 12 | AM31: 122892
A32: 2020-01-01T12:15:00 | B32: 74 | C32: 73 | D32: 8.48 | E32: 73 | F32: 7.64 | G32: 72 | H32: 2.28 | I32: 72 | J32: 1.377 | K32: 1 | L32: 1 | M32: 57 | N32: 2 | O32: 2 | P32: 2.355555556 | Q32: 2.122222222 | R32: 0.6333333333 | S32: 0.3825 | T32: 9846.222222 | U32: 8870.888889 | V32: 5294.666667 | W32: 3197.7 | X32: 61 | Y32: 61 | Z32: 62 | AA32: 62 | AB32: 74 | AC32: 62 | AD32: 19692.44444 | AE32: 51894.7 | AF32: 15486.9 | AG32: 9353.2725 | AH32: 9846.222222 | AI32: 43023.81111 | AJ32: 10192.23333 | AK32: 6155.5725 | AL32: 12 | AM32: 118154.6667
A33: 2020-01-01T12:30:00 | B33: 73.9 | C33: 73 | D33: 8.7 | E33: 73 | F33: 7.73 | G33: 72 | H33: 2.28 | I33: 72 | J33: 1.215 | K33: 0.9 | L33: 0.9 | M33: 56.9 | N33: 1.9 | O33: 1.9 | P33: 2.416666667 | Q33: 2.147222222 | R33: 0.6333333333 | S33: 0.3375 | T33: 9091.5 | U33: 8077.85 | V33: 5029.933333 | W33: 2680.425 | X33: 60.9 | Y33: 60.9 | Z33: 61.9 | AA33: 61.9 | AB33: 73.9 | AC33: 61.9 | AD33: 19193.16667 | AE33: 52506.025 | AF33: 15486.9 | AG33: 8252.8875 | AH33: 10101.66667 | AI33: 44428.175 | AJ33: 10456.96667 | AK33: 5572.4625 | AL33: 12 | AM33: 121220
A34: 2020-01-01T12:45:00 | B34: 73.4 | C34: 73 | D34: 8.68 | E34: 73 | F34: 7.98 | G34: 72 | H34: 2.21 | I34: 72 | J34: 1.097 | K34: 0.4 | L34: 0.4 | M34: 56.4 | N34: 1.4 | O34: 1.4 | P34: 2.411111111 | Q34: 2.216666667 | R34: 0.6138888889 | S34: 0.3047222222 | T34: 4031.377778 | U34: 3706.266667 | V34: 3592.477778 | W34: 1783.234444 | X34: 60.4 | Y34: 60.4 | Z34: 61.4 | AA34: 61.4 | AB34: 73.4 | AC34: 61.4 | AD34: 14109.82222 | AE34: 54204.15 | AF34: 15011.425 | AG34: 7451.3725 | AH34: 10078.44444 | AI34: 50497.88333 | AJ34: 11418.94722 | AK34: 5668.138056 | AL34: 12 | AM34: 120941.3333
A35: 2020-01-01T13:00:00 | B35: 73.7 | C35: 73 | D35: 8.56 | E35: 73 | F35: 8.16 | G35: 72 | H35: 2.24 | I35: 72 | J35: 0.869 | K35: 0.7 | L35: 0.7 | M35: 57.7 | N35: 1.7 | O35: 1.7 | P35: 2.377777778 | Q35: 2.266666667 | R35: 0.6222222222 | S35: 0.2413888889 | T35: 6957.377778 | U35: 6632.266667 | V35: 4421.511111 | W35: 1715.309444 | X35: 60.7 | Y35: 60.7 | Z35: 61.7 | AA35: 61.7 | AB35: 73.7 | AC35: 61.7 | AD35: 16896.48889 | AE35: 55426.8 | AF35: 15215.2 | AG35: 5902.6825 | AH35: 9939.111111 | AI35: 48794.53333 | AJ35: 10793.68889 | AK35: 4187.373056 | AL35: 12 | AM35: 119269.3333
A36: 2020-01-01T13:15:00 | B36: 73.6 | C36: 73 | D36: 8.46 | E36: 73 | F36: 8.07 | G36: 72 | H36: 2.24 | I36: 72 | J36: 0.794 | K36: 0.6 | L36: 0.6 | M36: 57.6 | N36: 1.6 | O36: 1.6 | P36: 2.35 | Q36: 2.241666667 | R36: 0.6222222222 | S36: 0.2205555556 | T36: 5893.8 | U36: 5622.1 | V36: 4161.422222 | W36: 1475.075556 | X36: 60.6 | Y36: 60.6 | Z36: 61.6 | AA36: 61.6 | AB36: 73.6 | AC36: 61.6 | AD36: 15716.8 | AE36: 54815.475 | AF36: 15215.2 | AG36: 5393.245 | AH36: 9823 | AI36: 49193.375 | AJ36: 11053.77778 | AK36: 3918.169444 | AL36: 12 | AM36: 117876
A37: 2020-01-01T13:30:00 | B37: 73.2 | C37: 73 | D37: 8.66 | E37: 73 | F37: 7.88 | G37: 72 | H37: 2.27 | I37: 72 | J37: 0.815 | K37: 0.2 | L37: 0.2 | M37: 56.2 | N37: 1.2 | O37: 1.2 | P37: 2.405555556 | Q37: 2.188888889 | R37: 0.6305555556 | S37: 0.2263888889 | T37: 2011.044444 | U37: 1829.911111 | V37: 3162.866667 | W37: 1135.566667 | X37: 60.2 | Y37: 60.2 | Z37: 61.2 | AA37: 61.2 | AB37: 73.2 | AC37: 61.2 | AD37: 12066.26667 | AE37: 53524.9 | AF37: 15418.975 | AG37: 5535.8875 | AH37: 10055.22222 | AI37: 51694.98889 | AJ37: 12256.10833 | AK37: 4400.320833 | AL37: 12 | AM37: 120662.6667
A38: 2020-01-01T13:45:00 | B38: 74 | C38: 73 | D38: 8.48 | E38: 73 | F38: 7.94 | G38: 72 | H38: 2.2 | I38: 72 | J38: 0.834 | K38: 1 | L38: 1 | M38: 57 | N38: 2 | O38: 2 | P38: 2.355555556 | Q38: 2.205555556 | R38: 0.6111111111 | S38: 0.2316666667 | T38: 9846.222222 | U38: 9219.222222 | V38: 5108.888889 | W38: 1936.733333 | X38: 61 | Y38: 61 | Z38: 62 | AA38: 62 | AB38: 74 | AC38: 62 | AD38: 19692.44444 | AE38: 53932.45 | AF38: 14943.5 | AG38: 5664.945 | AH38: 9846.222222 | AI38: 44713.22778 | AJ38: 9834.611111 | AK38: 3728.211667 | AL38: 12 | AM38: 118154.6667
A39: 2020-01-01T14:00:00 | B39: 73.7 | C39: 73 | D39: 8.06 | E39: 72 | F39: 7.95 | G39: 72 | H39: 2.27 | I39: 71 | J39: 0.841 | K39: 0.7 | L39: 1.7 | M39: 56.7 | N39: 1.7 | O39: 2.7 | P39: 2.238888889 | Q39: 2.208333333 | R39: 0.6305555556 | S39: 0.2336111111 | T39: 6550.988889 | U39: 15692.41667 | V39: 4480.727778 | W39: 2636.535 | X39: 60.7 | Y39: 61.7 | Z39: 61.7 | AA39: 62.7 | AB39: 73.7 | AC39: 62.7 | AD39: 25268.1 | AE39: 54000.375 | AF39: 15418.975 | AG39: 5712.4925 | AH39: 18717.11111 | AI39: 38307.95833 | AJ39: 10938.24722 | AK39: 3075.9575 | AL39: 11 | AM39: 102944.1111
A40: 2020-01-01T14:15:00 | B40: 73.4 | C40: 72 | D40: 8.03 | E40: 73 | F40: 7.96 | G40: 72 | H40: 2.29 | I40: 71 | J40: 0.833 | K40: 1.4 | L40: 0.4 | M40: 56.4 | N40: 1.4 | O40: 2.4 | P40: 2.230555556 | Q40: 2.211111111 | R40: 0.6361111111 | S40: 0.2313888889 | T40: 13053.21111 | U40: 3696.977778 | V40: 3722.522222 | W40: 2321.293333 | X40: 61.4 | Y40: 60.4 | Z40: 61.4 | AA40: 62.4 | AB40: 73.4 | AC40: 62.4 | AD40: 22376.93333 | AE40: 54068.3 | AF40: 15554.825 | AG40: 5658.1525 | AH40: 9323.722222 | AI40: 50371.32222 | AJ40: 11832.30278 | AK40: 3336.859167 | AL40: 11 | AM40: 102560.9444
A41: 2020-01-01T14:30:00 | B41: 73.7 | C41: 73 | D41: 7.93 | E41: 73 | F41: 8.66 | G41: 72 | H41: 2.24 | I41: 72 | J41: 1.134 | K41: 0.7 | L41: 0.7 | M41: 56.7 | N41: 1.7 | O41: 1.7 | P41: 2.202777778 | Q41: 2.405555556 | R41: 0.6222222222 | S41: 0.315 | T41: 6445.327778 | U41: 7038.655556 | V41: 4421.511111 | W41: 2238.39 | X41: 60.7 | Y41: 60.7 | Z41: 61.7 | AA41: 61.7 | AB41: 73.7 | AC41: 61.7 | AD41: 15652.93889 | AE41: 58823.05 | AF41: 15215.2 | AG41: 7702.695 | AH41: 9207.611111 | AI41: 51784.39444 | AJ41: 10793.68889 | AK41: 5464.305 | AL41: 12 | AM41: 110491.3333
A42: 2020-01-01T14:45:00 | B42: 73.8 | C42: 73 | D42: 7.7 | E42: 73 | F42: 8.53 | G42: 72 | H42: 2.21 | I42: 72 | J42: 1.465 | K42: 0.8 | L42: 0.8 | M42: 56.8 | N42: 1.8 | O42: 1.8 | P42: 2.138888889 | Q42: 2.369444444 | R42: 0.6138888889 | S42: 0.4069444444 | T42: 7152.444444 | U42: 7923.422222 | V42: 4618.9 | W42: 3061.85 | X42: 60.8 | Y42: 60.8 | Z42: 61.8 | AA42: 61.8 | AB42: 73.8 | AC42: 61.8 | AD42: 16093 | AE42: 57940.025 | AF42: 15011.425 | AG42: 9951.0125 | AH42: 8940.555556 | AI42: 50016.60278 | AJ42: 10392.525 | AK42: 6889.1625 | AL42: 12 | AM42: 107286.6667
A43: 2020-01-01T15:00:00 | B43: 73.6 | C43: 72 | D43: 7.73 | E43: 72 | F43: 8.49 | G43: 72 | H43: 2.19 | I43: 71 | J43: 1.569 | K43: 1.6 | L43: 1.6 | M43: 56.6 | N43: 1.6 | O43: 2.6 | P43: 2.147222222 | Q43: 2.358333333 | R43: 0.6083333333 | S43: 0.4358333333 | T43: 14360.62222 | U43: 15772.53333 | V43: 4068.533333 | W43: 4736.636667 | X43: 61.6 | Y43: 61.6 | Z43: 61.6 | AA43: 62.6 | AB43: 73.6 | AC43: 62.6 | AD43: 23336.01111 | AE43: 57668.325 | AF43: 14875.575 | AG43: 10657.4325 | AH43: 8975.388889 | AI43: 41895.79167 | AJ43: 10807.04167 | AK43: 5920.795833 | AL43: 11 | AM43: 98729.27778
A44: 2020-01-01T15:15:00 | B44: 73.4 | C44: 73 | D44: 7.57 | E44: 73 | F44: 8.08 | G44: 72 | H44: 2.17 | I44: 71 | J44: 1.568 | K44: 0.4 | L44: 0.4 | M44: 56.4 | N44: 1.4 | O44: 2.4 | P44: 2.102777778 | Q44: 2.244444444 | R44: 0.6027777778 | S44: 0.4355555556 | T44: 3515.844444 | U44: 3752.711111 | V44: 3527.455556 | W44: 4369.493333 | X44: 60.4 | Y44: 60.4 | Z44: 61.4 | AA44: 62.4 | AB44: 73.4 | AC44: 62.4 | AD44: 21095.06667 | AE44: 54883.4 | AF44: 14739.725 | AG44: 10650.64 | AH44: 17579.22222 | AI44: 51130.68889 | AJ44: 11212.26944 | AK44: 6281.146667 | AL44: 11 | AM44: 96685.72222
A45: 2020-01-01T15:30:00 | B45: 73.7 | C45: 73 | D45: 7.71 | E45: 73 | F45: 7.91 | G45: 72 | H45: 2.2 | I45: 72 | J45: 1.576 | K45: 0.7 | L45: 0.7 | M45: 56.7 | N45: 1.7 | O45: 1.7 | P45: 2.141666667 | Q45: 2.197222222 | R45: 0.6111111111 | S45: 0.4377777778 | T45: 6266.516667 | U45: 6429.072222 | V45: 4342.555556 | W45: 3110.848889 | X45: 60.7 | Y45: 60.7 | Z45: 61.7 | AA45: 61.7 | AB45: 73.7 | AC45: 61.7 | AD45: 15218.68333 | AE45: 53728.675 | AF45: 14943.5 | AG45: 10704.98 | AH45: 8952.166667 | AI45: 47299.60278 | AJ45: 10600.94444 | AK45: 7594.131111 | AL45: 12 | AM45: 107426
A46: 2020-01-01T15:45:00 | B46: 73.5 | C46: 73 | D46: 7.98 | E46: 73 | F46: 7.8 | G46: 72 | H46: 2.18 | I46: 71 | J46: 1.522 | K46: 0.5 | L46: 0.5 | M46: 56.5 | N46: 1.5 | O46: 2.5 | P46: 2.216666667 | Q46: 2.166666667 | R46: 0.6055555556 | S46: 0.4227777778 | T46: 4632.833333 | U46: 4528.333333 | V46: 3796.833333 | W46: 4418.027778 | X46: 60.5 | Y46: 60.5 | Z46: 61.5 | AA46: 62.5 | AB46: 73.5 | AC46: 62.5 | AD46: 23164.16667 | AE46: 52981.5 | AF46: 14807.65 | AG46: 10338.185 | AH46: 18531.33333 | AI46: 48453.16667 | AJ46: 11010.81667 | AK46: 5920.157222 | AL46: 11 | AM46: 101922.3333
A47: 2020-01-01T16:00:00 | B47: 73.6 | C47: 73 | D47: 8.51 | E47: 72 | F47: 8.02 | G47: 72 | H47: 2.25 | I47: 71 | J47: 1.529 | K47: 0.6 | L47: 1.6 | M47: 56.6 | N47: 1.6 | O47: 2.6 | P47: 2.363888889 | Q47: 2.227777778 | R47: 0.625 | S47: 0.4247222222 | T47: 5928.633333 | U47: 14899.37778 | V47: 4180 | W47: 4615.881111 | X47: 60.6 | Y47: 61.6 | Z47: 61.6 | AA47: 62.6 | AB47: 73.6 | AC47: 62.6 | AD47: 25690.74444 | AE47: 54475.85 | AF47: 15283.125 | AG47: 10385.7325 | AH47: 19762.11111 | AI47: 39576.47222 | AJ47: 11103.125 | AK47: 5769.851389 | AL47: 11 | AM47: 108691.6111
A48: 2020-01-01T16:15:00 | B48: 73.5 | C48: 73 | D48: 9.14 | E48: 73 | F48: 8.14 | G48: 72 | H48: 1.58 | I48: 72 | J48: 1.516 | K48: 0.5 | L48: 0.5 | M48: 56.5 | N48: 1.5 | O48: 1.5 | P48: 2.538888889 | Q48: 2.261111111 | R48: 0.4388888889 | S48: 0.4211111111 | T48: 5306.277778 | U48: 4725.722222 | V48: 2751.833333 | W48: 2640.366667 | X48: 60.5 | Y48: 60.5 | Z48: 61.5 | AA48: 61.5 | AB48: 73.5 | AC48: 61.5 | AD48: 15918.83333 | AE48: 55290.95 | AF48: 10732.15 | AG48: 10297.43 | AH48: 10612.55556 | AI48: 50565.22778 | AJ48: 7980.316667 | AK48: 7657.063333 | AL48: 12 | AM48: 127350.6667
A49: 2020-01-01T16:30:00 | B49: 73.6 | C49: 73 | D49: 9.08 | E49: 72 | F49: 8.14 | G49: 72 | H49: 1.75 | I49: 71 | J49: 1.44 | K49: 0.6 | L49: 1.6 | M49: 56.6 | N49: 1.6 | O49: 2.6 | P49: 2.522222222 | Q49: 2.261111111 | R49: 0.4861111111 | S49: 0.4 | T49: 6325.733333 | U49: 15122.31111 | V49: 3251.111111 | W49: 4347.2 | X49: 60.6 | Y49: 61.6 | Z49: 61.6 | AA49: 62.6 | AB49: 73.6 | AC49: 62.6 | AD49: 27411.51111 | AE49: 55290.95 | AF49: 11886.875 | AG49: 9781.2 | AH49: 21085.77778 | AI49: 40168.63889 | AJ49: 8635.763889 | AK49: 5434 | AL49: 11 | AM49: 115971.7778
A50: 2020-01-01T16:45:00 | B50: 73.6 | C50: 73 | D50: 8.96 | E50: 73 | F50: 8.98 | G50: 72 | H50: 1.83 | I50: 71 | J50: 1.646 | K50: 0.6 | L50: 0.6 | M50: 57.6 | N50: 1.6 | O50: 2.6 | P50: 2.488888889 | Q50: 2.494444444 | R50: 0.5083333333 | S50: 0.4572222222 | T50: 6242.133333 | U50: 6256.066667 | V50: 3399.733333 | W50: 4969.091111 | X50: 60.6 | Y50: 60.6 | Z50: 61.6 | AA50: 62.6 | AB50: 73.6 | AC50: 62.6 | AD50: 27049.24444 | AE50: 60996.65 | AF50: 12430.275 | AG50: 11180.455 | AH50: 20807.11111 | AI50: 54740.58333 | AJ50: 9030.541667 | AK50: 6211.363889 | AL50: 11 | AM50: 114439.1111
A51: 2020-01-01T17:00:00 | B51: 73.5 | C51: 73 | D51: 9.02 | E51: 72 | F51: 9.25 | G51: 72 | H51: 1.9 | I51: 71 | J51: 1.59 | K51: 0.5 | L51: 1.5 | M51: 57.5 | N51: 1.5 | O51: 2.5 | P51: 2.505555556 | Q51: 2.569444444 | R51: 0.5277777778 | S51: 0.4416666667 | T51: 5236.611111 | U51: 16110.41667 | V51: 3309.166667 | W51: 4615.416667 | X51: 60.5 | Y51: 61.5 | Z51: 61.5 | AA51: 62.5 | AB51: 73.5 | AC51: 62.5 | AD51: 26183.05556 | AE51: 62830.625 | AF51: 12905.75 | AG51: 10800.075 | AH51: 20946.44444 | AI51: 46720.20833 | AJ51: 9596.583333 | AK51: 6184.658333 | AL51: 11 | AM51: 115205.4444
A52: 2020-01-01T17:15:00 | B52: 73.7 | C52: 72 | D52: 8.93 | E52: 72 | F52: 9.37 | G52: 72 | H52: 1.92 | I52: 71 | J52: 1.563 | K52: 1.7 | L52: 1.7 | M52: 57.7 | N52: 1.7 | O52: 2.7 | P52: 2.480555556 | Q52: 2.602777778 | R52: 0.5333333333 | S52: 0.4341666667 | T52: 17626.82778 | U52: 18495.33889 | V52: 3789.866667 | W52: 4900.005 | X52: 61.7 | Y52: 61.7 | Z52: 61.7 | AA52: 62.7 | AB52: 73.7 | AC52: 62.7 | AD52: 27995.55 | AE52: 63645.725 | AF52: 13041.6 | AG52: 10616.6775 | AH52: 10368.72222 | AI52: 45150.38611 | AJ52: 9251.733333 | AK52: 5716.6725 | AL52: 11 | AM52: 114055.9444
A53: 2020-01-01T17:30:00 | B53: 73.4 | C53: 72 | D53: 9.05 | E53: 72 | F53: 9.65 | G53: 72 | H53: 1.9 | I53: 71 | J53: 1.627 | K53: 1.4 | L53: 1.4 | M53: 57.4 | N53: 1.4 | O53: 2.4 | P53: 2.513888889 | Q53: 2.680555556 | R53: 0.5277777778 | S53: 0.4519444444 | T53: 14711.27778 | U53: 15686.61111 | V53: 3088.555556 | W53: 4533.906667 | X53: 61.4 | Y53: 61.4 | Z53: 61.4 | AA53: 62.4 | AB53: 73.4 | AC53: 62.4 | AD53: 25219.33333 | AE53: 65547.625 | AF53: 12905.75 | AG53: 11051.3975 | AH53: 10508.05556 | AI53: 49861.01389 | AJ53: 9817.194444 | AK53: 6517.490833 | AL53: 11 | AM53: 115588.6111
A54: 2020-01-01T17:45:00 | B54: 73.8 | C54: 73 | D54: 9.6 | E54: 73 | F54: 10 | G54: 72 | H54: 2.02 | I54: 71 | J54: 1.024 | K54: 0.8 | L54: 0.8 | M54: 57.8 | N54: 1.8 | O54: 2.8 | P54: 2.666666667 | Q54: 2.777777778 | R54: 0.5611111111 | S54: 0.2844444444 | T54: 8917.333333 | U54: 9288.888889 | V54: 4221.8 | W54: 3329.137778 | X54: 60.8 | Y54: 60.8 | Z54: 61.8 | AA54: 62.8 | AB54: 73.8 | AC54: 62.8 | AD54: 31210.66667 | AE54: 67925 | AF54: 13720.85 | AG54: 6955.52 | AH54: 22293.33333 | AI54: 58636.11111 | AJ54: 9499.05 | AK54: 3626.382222 | AL54: 11 | AM54: 122613.3333
A55: 2020-01-01T18:00:00 | B55: 73.8 | C55: 72 | D55: 10.16 | E55: 72 | F55: 10.11 | G55: 71 | H55: 1.97 | I55: 71 | J55: 0.908 | K55: 1.8 | L55: 1.8 | M55: 57.8 | N55: 2.8 | O55: 2.8 | P55: 2.822222222 | Q55: 2.808333333 | R55: 0.5472222222 | S55: 0.2522222222 | T55: 21234.4 | U55: 21129.9 | V55: 6404.688889 | W55: 2952.008889 | X55: 61.8 | Y55: 61.8 | Z55: 62.8 | AA55: 62.8 | AB55: 73.8 | AC55: 62.8 | AD55: 33031.28889 | AE55: 68672.175 | AF55: 13381.225 | AG55: 6167.59 | AH55: 11796.88889 | AI55: 47542.275 | AJ55: 6976.536111 | AK55: 3215.581111 | AL55: 11 | AM55: 129765.7778
A56: 2020-01-01T18:15:00 | B56: 73.8 | C56: 73 | D56: 10.19 | E56: 72 | F56: 9.79 | G56: 72 | H56: 1.99 | I56: 71 | J56: 1.622 | K56: 0.8 | L56: 1.8 | M56: 57.8 | N56: 1.8 | O56: 2.8 | P56: 2.830555556 | Q56: 2.719444444 | R56: 0.5527777778 | S56: 0.4505555556 | T56: 9465.377778 | U56: 20461.1 | V56: 4159.1 | W56: 5273.302222 | X56: 60.8 | Y56: 61.8 | Z56: 61.8 | AA56: 62.8 | AB56: 73.8 | AC56: 62.8 | AD56: 33128.82222 | AE56: 66498.575 | AF56: 13517.075 | AG56: 11017.435 | AH56: 23663.44444 | AI56: 46037.475 | AJ56: 9357.975 | AK56: 5744.132778 | AL56: 11 | AM56: 130148.9444
A57: 2020-01-01T18:30:00 | B57: 73.7 | C57: 72 | D57: 10.07 | E57: 72 | F57: 9.78 | G57: 72 | H57: 2.04 | I57: 71 | J57: 1.023 | K57: 1.7 | L57: 1.7 | M57: 57.7 | N57: 1.7 | O57: 2.7 | P57: 2.797222222 | Q57: 2.716666667 | R57: 0.5666666667 | S57: 0.2841666667 | T57: 19877.06111 | U57: 19304.63333 | V57: 4026.733333 | W57: 3207.105 | X57: 61.7 | Y57: 61.7 | Z57: 61.7 | AA57: 62.7 | AB57: 73.7 | AC57: 62.7 | AD57: 31569.45 | AE57: 66430.65 | AF57: 13856.7 | AG57: 6948.7275 | AH57: 11692.38889 | AI57: 47126.01667 | AJ57: 9829.966667 | AK57: 3741.6225 | AL57: 11 | AM57: 128616.2778
A58: 2020-01-01T18:45:00 | B58: 73.6 | C58: 73 | D58: 10.5 | E58: 73 | F58: 9.78 | G58: 71 | H58: 2.1 | I58: 71 | J58: 1.42 | K58: 0.6 | L58: 0.6 | M58: 57.6 | N58: 2.6 | O58: 2.6 | P58: 2.916666667 | Q58: 2.716666667 | R58: 0.5833333333 | S58: 0.3944444444 | T58: 7315 | U58: 6813.4 | V58: 6339.666667 | W58: 4286.822222 | X58: 60.6 | Y58: 60.6 | Z58: 62.6 | AA58: 62.6 | AB58: 73.6 | AC58: 62.6 | AD58: 31698.33333 | AE58: 66430.65 | AF58: 14264.25 | AG58: 9645.35 | AH58: 24383.33333 | AI58: 59617.25 | AJ58: 7924.583333 | AK58: 5358.527778 | AL58: 11 | AM58: 134108.3333
A59: 2020-01-01T19:00:00 | B59: 73.7 | C59: 72 | D59: 10.62 | E59: 73 | F59: 9.78 | G59: 72 | H59: 2.12 | I59: 71 | J59: 1.229 | K59: 1.7 | L59: 0.7 | M59: 57.7 | N59: 1.7 | O59: 2.7 | P59: 2.95 | Q59: 2.716666667 | R59: 0.5888888889 | S59: 0.3413888889 | T59: 20962.7 | U59: 7948.966667 | V59: 4184.644444 | W59: 3852.915 | X59: 61.7 | Y59: 60.7 | Z59: 61.7 | AA59: 62.7 | AB59: 73.7 | AC59: 62.7 | AD59: 33293.7 | AE59: 66430.65 | AF59: 14400.1 | AG59: 8347.9825 | AH59: 12331 | AI59: 58481.68333 | AJ59: 10215.45556 | AK59: 4495.0675 | AL59: 11 | AM59: 135641
A60: 2020-01-01T19:15:00 | B60: 73.9 | C60: 73 | D60: 10.88 | E60: 72 | F60: 9.49 | G60: 72 | H60: 2.19 | I60: 72 | J60: 1.645 | K60: 0.9 | L60: 1.9 | M60: 57.9 | N60: 1.9 | O60: 1.9 | P60: 3.022222222 | Q60: 2.636111111 | R60: 0.6083333333 | S60: 0.4569444444 | T60: 11369.6 | U60: 20935.99444 | V60: 4831.383333 | W60: 3629.052778 | X60: 60.9 | Y60: 61.9 | Z60: 61.9 | AA60: 61.9 | AB60: 73.9 | AC60: 61.9 | AD60: 24002.48889 | AE60: 64460.825 | AF60: 14875.575 | AG60: 11173.6625 | AH60: 12632.88889 | AI60: 43524.83056 | AJ60: 10044.19167 | AK60: 7544.609722 | AL60: 12 | AM60: 151594.6667
A61: 2020-01-01T19:30:00 | B61: 73.9 | C61: 73 | D61: 10.93 | E61: 72 | F61: 9.36 | G61: 72 | H61: 2.22 | I61: 72 | J61: 1.139 | K61: 0.9 | L61: 1.9 | M61: 57.9 | N61: 1.9 | O61: 1.9 | P61: 3.036111111 | Q61: 2.6 | R61: 0.6166666667 | S61: 0.3163888889 | T61: 11421.85 | U61: 20649.2 | V61: 4897.566667 | W61: 2512.760556 | X61: 60.9 | Y61: 61.9 | Z61: 61.9 | AA61: 61.9 | AB61: 73.9 | AC61: 61.9 | AD61: 24112.79444 | AE61: 63577.8 | AF61: 15079.35 | AG61: 7736.6575 | AH61: 12690.94444 | AI61: 42928.6 | AJ61: 10181.78333 | AK61: 5223.896944 | AL61: 12 | AM61: 152291.3333
A62: 2020-01-01T19:45:00 | B62: 74.1 | C62: 73 | D62: 10.89 | E62: 73 | F62: 9.43 | G62: 72 | H62: 2.22 | I62: 71 | J62: 0.991 | K62: 1.1 | L62: 1.1 | M62: 58.1 | N62: 2.1 | O62: 3.1 | P62: 3.025 | Q62: 2.619444444 | R62: 0.6166666667 | S62: 0.2752777778 | T62: 13908.95 | U62: 12044.20556 | V62: 5413.1 | W62: 3567.049444 | X62: 61.1 | Y62: 61.1 | Z62: 62.1 | AA62: 63.1 | AB62: 74.1 | AC62: 63.1 | AD62: 39197.95 | AE62: 64053.275 | AF62: 15079.35 | AG62: 6731.3675 | AH62: 25289 | AI62: 52009.06944 | AJ62: 9666.25 | AK62: 3164.318056 | AL62: 11 | AM62: 139089.5
A63: 2020-01-02T05:15:00 | B63: 77.5 | C63: 76 | D63: 9.54 | E63: 76 | F63: 9.1 | G63: 75 | H63: 7.65 | I63: 71 | J63: 1.466 | K63: 1.5 | L63: 1.5 | M63: 61.5 | N63: 2.5 | O63: 6.5 | P63: 2.65 | Q63: 2.527777778 | R63: 2.125 | S63: 0.4072222222 | T63: 16615.5 | U63: 15849.16667 | V63: 22206.25 | W63: 11064.22778 | X63: 61.5 | Y63: 61.5 | Z63: 62.5 | AA63: 66.5 | AB63: 77.5 | AC63: 66.5 | AD63: 72000.5 | AE63: 61811.75 | AF63: 51962.625 | AG63: 9957.805 | AH63: 55385 | AI63: 45962.58333 | AJ63: 29756.375 | AK63: -1106.422778 | AL63: 11 | AM63: 121847
A64: 2020-01-02T05:30:00 | B64: 77.2 | C64: 76 | D64: 9.46 | E64: 76 | F64: 9.02 | G64: 75 | H64: 7.38 | I64: 74 | J64: 2.183 | K64: 1.2 | L64: 1.2 | M64: 61.2 | N64: 2.2 | O64: 3.2 | P64: 2.627777778 | Q64: 2.505555556 | R64: 2.05 | S64: 0.6063888889 | T64: 13180.93333 | U64: 12567.86667 | V64: 18851.8 | W64: 8111.057778 | X64: 61.2 | Y64: 61.2 | Z64: 62.2 | AA64: 63.2 | AB64: 77.2 | AC64: 63.2 | AD64: 35149.15556 | AE64: 61268.35 | AF64: 50128.65 | AG64: 14828.0275 | AH64: 21968.22222 | AI64: 48700.48333 | AJ64: 31276.85 | AK64: 6716.969722 | AL64: 14 | AM64: 153777.5556
A65: 2020-01-02T05:45:00 | B65: 77.6 | C65: 76 | D65: 9.86 | E65: 76 | F65: 9.12 | G65: 75 | H65: 7.53 | I65: 75 | J65: 2.361 | K65: 1.6 | L65: 1.6 | M65: 61.6 | N65: 2.6 | O65: 2.6 | P65: 2.738888889 | Q65: 2.533333333 | R65: 2.091666667 | S65: 0.6558333333 | T65: 18317.68889 | U65: 16942.93333 | V65: 22732.23333 | W65: 7127.596667 | X65: 61.6 | Y65: 61.6 | Z65: 62.6 | AA65: 62.6 | AB65: 77.6 | AC65: 62.6 | AD65: 29766.24444 | AE65: 61947.6 | AF65: 51147.525 | AG65: 16037.0925 | AH65: 11448.55556 | AI65: 45004.66667 | AJ65: 28415.29167 | AK65: 8909.495833 | AL65: 15 | AM65: 171728.3333
A66: 2020-01-02T06:00:00 | B66: 77.6 | C66: 76 | D66: 9.83 | E66: 76 | F66: 9.03 | G66: 76 | H66: 7.53 | I66: 75 | J66: 2.336 | K66: 1.6 | L66: 1.6 | M66: 61.6 | N66: 1.6 | O66: 2.6 | P66: 2.730555556 | Q66: 2.508333333 | R66: 2.091666667 | S66: 0.6488888889 | T66: 18261.95556 | U66: 16775.73333 | V66: 13989.06667 | W66: 7052.124444 | X66: 61.6 | Y66: 61.6 | Z66: 61.6 | AA66: 62.6 | AB66: 77.6 | AC66: 62.6 | AD66: 29675.67778 | AE66: 61336.275 | AF66: 51147.525 | AG66: 15867.28 | AH66: 11413.72222 | AI66: 44560.54167 | AJ66: 37158.45833 | AK66: 8815.155556 | AL66: 15 | AM66: 171205.8333
A67: 2020-01-02T06:15:00 | B67: 77.1 | C67: 76 | D67: 9.94 | E67: 76 | F67: 8.75 | G67: 76 | H67: 3.68 | I67: 75 | J67: 2.264 | K67: 1.1 | L67: 1.1 | M67: 61.1 | N67: 1.1 | O67: 2.1 | P67: =D67*1000/3600 -> 2.761111111 | Q67: =F67*1000/3600 -> 2.430555556 | R67: =H67*1000/3600 -> 1.022222222 | S67: =J67*1000/3600 -> 0.6288888889 | T67: =P67*4180*K67 -> 12695.58889 | U67: =Q67*4180*L67 -> 11175.69444 | V67: =R67*4180*N67 -> 4700.177778 | W67: =S67*4180*O67 -> 5520.386667 | X67: =(T67/(P67*4180))+60 -> 61.1 | Y67: =(U67/(Q67*4180))+60 -> 61.1 | Z67: 61.1 | AA67: =(W67/(S67*4180))+60 -> 62.1 | AB67: =B67 -> 77.1 | AC67: =MAX(X67:AA67) -> 62.1 | AD67: =P67*4180*(AC67-60) -> 24237.03333 | AE67: =Q67*4180*($AC$2-60) -> 59434.375 | AF67: =R67*4180*($AC$2-60) -> 24996.4 | AG67: 15378.22 | AH67: =AD67-T67 -> 11541.44444 | AI67: =AE67-U67 -> 48258.68056 | AJ67: =AF67-V67 -> 20296.22222 | AK67: =AG67-W67 -> 9857.833333 | AL67: =AB67-AC67 -> 15 | AM67: =P67*4180*(AB67-AC67) -> 173121.6667
A68: 2020-01-02T06:30:00 | B68: 77.8 | C68: 76 | D68: 9.94 | E68: 76 | F68: 8.7 | G68: 76 | H68: 3.28 | I68: 75 | J68: 2.341 | K68: 1.8 | L68: 1.8 | M68: 61.8 | N68: 1.8 | O68: 2.8 | P68: 2.761111111 | Q68: 2.416666667 | R68: 0.9111111111 | S68: 0.6502777778 | T68: 20774.6 | U68: 18183 | V68: 6855.2 | W68: 7610.851111 | X68: 61.8 | Y68: 61.8 | Z68: 61.8 | AA68: 62.8 | AB68: 77.8 | AC68: 62.8 | AD68: 32316.04444 | AE68: 59094.75 | AF68: 22279.4 | AG68: 15901.2425 | AH68: 11541.44444 | AI68: 40911.75 | AJ68: 15424.2 | AK68: 8290.391389 | AL68: 15 | AM68: 173121.6667
A69: 2020-01-02T06:45:00 | B69: 77.6 | C69: 77 | D69: 9.67 | E69: 77 | F69: 9.12 | G69: 76 | H69: 3.37 | I69: 75 | J69: 2.264 | K69: 0.6 | L69: 0.6 | M69: 61.6 | N69: 1.6 | O69: 2.6 | P69: 2.686111111 | Q69: 2.533333333 | R69: 0.9361111111 | S69: 0.6288888889 | T69: 6736.766667 | U69: 6353.6 | V69: 6260.711111 | W69: 6834.764444 | X69: 60.6 | Y69: 60.6 | Z69: 61.6 | AA69: 62.6 | AB69: 77.6 | AC69: 62.6 | AD69: 29192.65556 | AE69: 61947.6 | AF69: 22890.725 | AG69: 15378.22 | AH69: 22455.88889 | AI69: 55594 | AJ69: 16630.01389 | AK69: 8543.455556 | AL69: 15 | AM69: 168419.1667
A70: 2020-01-02T07:00:00 | B70: 77.3 | C70: 76 | D70: 9.93 | E70: 77 | F70: 8.84 | G70: 76 | H70: 3.54 | I70: 75 | J70: 2.253 | K70: 1.3 | L70: 0.3 | M70: 61.3 | N70: 1.3 | O70: 2.3 | P70: 2.758333333 | Q70: 2.455555556 | R70: 0.9833333333 | S70: 0.6258333333 | T70: 14988.78333 | U70: 3079.266667 | V70: 5343.433333 | W70: 6016.761667 | X70: 61.3 | Y70: 60.3 | Z70: 61.3 | AA70: 62.3 | AB70: 77.3 | AC70: 62.3 | AD70: 26518.61667 | AE70: 60045.7 | AF70: 24045.45 | AG70: 15303.5025 | AH70: 11529.83333 | AI70: 56966.43333 | AJ70: 18702.01667 | AK70: 9286.740833 | AL70: 15 | AM70: 172947.5
A71: 2020-01-02T07:15:00 | B71: 77.5 | C71: 76 | D71: 9.77 | E71: 77 | F71: 9.45 | G71: 76 | H71: 3.68 | I71: 75 | J71: 2.243 | K71: 1.5 | L71: 0.5 | M71: 61.5 | N71: 1.5 | O71: 2.5 | P71: 2.713888889 | Q71: 2.625 | R71: 1.022222222 | S71: 0.6230555556 | T71: 17016.08333 | U71: 5486.25 | V71: 6409.333333 | W71: 6510.930556 | X71: 61.5 | Y71: 60.5 | Z71: 61.5 | AA71: 62.5 | AB71: 77.5 | AC71: 62.5 | AD71: 28360.13889 | AE71: 64189.125 | AF71: 24996.4 | AG71: 15235.5775 | AH71: 11344.05556 | AI71: 58702.875 | AJ71: 18587.06667 | AK71: 8724.646944 | AL71: 15 | AM71: 170160.8333
A72: 2020-01-02T07:30:00 | B72: 77.8 | C72: 76 | D72: 9.92 | E72: 76 | F72: 9.82 | G72: 76 | H72: 3.7 | I72: 76 | J72: 2.123 | K72: 1.8 | L72: 1.8 | M72: 62.8 | N72: 1.8 | O72: 1.8 | P72: 2.755555556 | Q72: 2.727777778 | R72: 1.027777778 | S72: 0.5897222222 | T72: 20732.8 | U72: 20523.8 | V72: 7733 | W72: 4437.07 | X72: 61.8 | Y72: 61.8 | Z72: 61.8 | AA72: 61.8 | AB72: 77.8 | AC72: 61.8 | AD72: 20732.8 | AE72: 66702.35 | AF72: 25132.25 | AG72: 14420.4775 | AH72: -3.637978807e-11 | AI72: 46178.55 | AJ72: 17399.25 | AK72: 9983.4075 | AL72: 16 | AM72: 184291.5556
A73: 2020-01-02T07:45:00 | B73: 77.9 | C73: 77 | D73: 9.65 | E73: 77 | F73: 9.56 | G73: 76 | H73: 3.66 | I73: 75 | J73: 1.693 | K73: 0.9 | L73: 0.9 | M73: 62.9 | N73: 1.9 | O73: 2.9 | P73: 2.680555556 | Q73: 2.655555556 | R73: 1.016666667 | S73: 0.4702777778 | T73: 10084.25 | U73: 9990.2 | V73: 8074.366667 | W73: 5700.707222 | X73: 60.9 | Y73: 60.9 | Z73: 61.9 | AA73: 62.9 | AB73: 77.9 | AC73: 62.9 | AD73: 32493.69444 | AE73: 64936.3 | AF73: 24860.55 | AG73: 11499.7025 | AH73: 22409.44444 | AI73: 54946.1 | AJ73: 16786.18333 | AK73: 5798.995278 | AL73: 15 | AM73: 168070.8333
A74: 2020-01-02T08:00:00 | B74: 77.5 | C74: 77 | D74: 10.25 | E74: 77 | F74: 9.25 | G74: 76 | H74: 3.72 | I74: 75 | J74: 1.55 | K74: 0.5 | L74: 0.5 | M74: 62.5 | N74: 1.5 | O74: 2.5 | P74: 2.847222222 | Q74: 2.569444444 | R74: 1.033333333 | S74: 0.4305555556 | T74: 5950.694444 | U74: 5370.138889 | V74: 6479 | W74: 4499.305556 | X74: 60.5 | Y74: 60.5 | Z74: 61.5 | AA74: 62.5 | AB74: 77.5 | AC74: 62.5 | AD74: 29753.47222 | AE74: 62830.625 | AF74: 25268.1 | AG74: 10528.375 | AH74: 23802.77778 | AI74: 57460.48611 | AJ74: 18789.1 | AK74: 6029.069444 | AL74: 15 | AM74: 178520.8333
A75: 2020-01-02T08:15:00 | B75: 77.8 | C75: 77 | D75: 10.19 | E75: 77 | F75: 9.32 | G75: 76 | H75: 3.66 | I75: 75 | J75: 1.65 | K75: 0.8 | L75: 0.8 | M75: 62.8 | N75: 1.8 | O75: 2.8 | P75: 2.830555556 | Q75: 2.588888889 | R75: 1.016666667 | S75: 0.4583333333 | T75: 9465.377778 | U75: 8657.244444 | V75: 7649.4 | W75: 5364.333333 | X75: 60.8 | Y75: 60.8 | Z75: 61.8 | AA75: 62.8 | AB75: 77.8 | AC75: 62.8 | AD75: 33128.82222 | AE75: 63306.1 | AF75: 24860.55 | AG75: 11207.625 | AH75: 23663.44444 | AI75: 54648.85556 | AJ75: 17211.15 | AK75: 5843.291667 | AL75: 15 | AM75: 177475.8333
A76: 2020-01-02T08:30:00 | B76: 78.3 | C76: 77 | D76: 10.08 | E76: 77 | F76: 9.67 | G76: 76 | H76: 3.72 | I76: 75 | J76: 1.625 | K76: 1.3 | L76: 1.3 | M76: 63.3 | N76: 2.3 | O76: 3.3 | P76: 2.8 | Q76: 2.686111111 | R76: 1.033333333 | S76: 0.4513888889 | T76: 15215.2 | U76: 14596.32778 | V76: 9934.466667 | W76: 6226.458333 | X76: 61.3 | Y76: 61.3 | Z76: 62.3 | AA76: 63.3 | AB76: 78.3 | AC76: 63.3 | AD76: 38623.2 | AE76: 65683.475 | AF76: 25268.1 | AG76: 11037.8125 | AH76: 23408 | AI76: 51087.14722 | AJ76: 15333.63333 | AK76: 4811.354167 | AL76: 15 | AM76: 175560
A77: 2020-01-02T08:45:00 | B77: 77.6 | C77: 77 | D77: 9.82 | E77: 77 | F77: 9.88 | G77: 76 | H77: 3.72 | I77: 76 | J77: 1.339 | K77: 0.6 | L77: 0.6 | M77: 62.6 | N77: 1.6 | O77: 1.6 | P77: 2.727777778 | Q77: 2.744444444 | R77: 1.033333333 | S77: 0.3719444444 | T77: 6841.266667 | U77: 6883.066667 | V77: 6910.933333 | W77: 2487.564444 | X77: 60.6 | Y77: 60.6 | Z77: 61.6 | AA77: 61.6 | AB77: 77.6 | AC77: 61.6 | AD77: 18243.37778 | AE77: 67109.9 | AF77: 25268.1 | AG77: 9095.1575 | AH77: 11402.11111 | AI77: 60226.83333 | AJ77: 18357.16667 | AK77: 6607.593056 | AL77: 16 | AM77: 182433.7778
A78: 2020-01-02T09:00:00 | B78: 78.4 | C78: 77 | D78: 9.74 | E78: 77 | F78: 9.92 | G78: 76 | H78: 3.71 | I78: 75 | J78: 1.464 | K78: 1.4 | L78: 1.4 | M78: 63.4 | N78: 2.4 | O78: 3.4 | P78: 2.705555556 | Q78: 2.755555556 | R78: 1.030555556 | S78: 0.4066666667 | T78: 15832.91111 | U78: 16125.51111 | V78: 10338.53333 | W78: 5779.546667 | X78: 61.4 | Y78: 61.4 | Z78: 62.4 | AA78: 63.4 | AB78: 78.4 | AC78: 63.4 | AD78: 38451.35556 | AE78: 67381.6 | AF78: 25200.175 | AG78: 9944.22 | AH78: 22618.44444 | AI78: 51256.08889 | AJ78: 14861.64167 | AK78: 4164.673333 | AL78: 15 | AM78: 169638.3333
A79: 2020-01-02T09:15:00 | B79: 78 | C79: 77 | D79: 9.81 | E79: 77 | F79: 10.52 | G79: 76 | H79: 3.68 | I79: 76 | J79: 1.66 | K79: 1 | L79: 1 | M79: 63 | N79: 2 | O79: 2 | P79: 2.725 | Q79: 2.922222222 | R79: 1.022222222 | S79: 0.4611111111 | T79: 11390.5 | U79: 12214.88889 | V79: 8545.777778 | W79: 3854.888889 | X79: 61 | Y79: 61 | Z79: 62 | AA79: 62 | AB79: 78 | AC79: 62 | AD79: 22781 | AE79: 71457.1 | AF79: 24996.4 | AG79: 11275.55 | AH79: 11390.5 | AI79: 59242.21111 | AJ79: 16450.62222 | AK79: 7420.661111 | AL79: 16 | AM79: 182248
A80: 2020-01-02T09:30:00 | B80: 78 | C80: 77 | D80: 9.65 | E80: 77 | F80: 10.59 | G80: 76 | H80: 3.58 | I80: 76 | J80: 1.336 | K80: 1 | L80: 1 | M80: 63 | N80: 2 | O80: 2 | P80: 2.680555556 | Q80: 2.941666667 | R80: 0.9944444444 | S80: 0.3711111111 | T80: 11204.72222 | U80: 12296.16667 | V80: 8313.555556 | W80: 3102.488889 | X80: 61 | Y80: 61 | Z80: 62 | AA80: 62 | AB80: 78 | AC80: 62 | AD80: 22409.44444 | AE80: 71932.575 | AF80: 24317.15 | AG80: 9074.78 | AH80: 11204.72222 | AI80: 59636.40833 | AJ80: 16003.59444 | AK80: 5972.291111 | AL80: 16 | AM80: 179275.5556
A81: 2020-01-02T10:00:00 | B81: 78.6 | C81: 77 | D81: 9.27 | E81: 77 | F81: 10.73 | G81: 76 | H81: 3.46 | I81: 76 | J81: 1.223 | K81: 1.6 | L81: 1.6 | M81: 63.6 | N81: 2.6 | O81: 2.6 | P81: 2.575 | Q81: 2.980555556 | R81: 0.9611111111 | S81: 0.3397222222 | T81: 17221.6 | U81: 19933.95556 | V81: 10445.35556 | W81: 3692.101111 | X81: 61.6 | Y81: 61.6 | Z81: 62.6 | AA81: 62.6 | AB81: 78.6 | AC81: 62.6 | AD81: 27985.1 | AE81: 72883.525 | AF81: 23502.05 | AG81: 8307.2275 | AH81: 10763.5 | AI81: 52949.56944 | AJ81: 13056.69444 | AK81: 4615.126389 | AL81: 16 | AM81: 172216
A82: 2020-01-02T10:15:00 | B82: 77.7 | C82: 77 | D82: 9.41 | E82: 77 | F82: 9.99 | G82: 77 | H82: 3.42 | I82: 76 | J82: 1.309 | K82: 0.7 | L82: 0.7 | M82: 62.7 | N82: 0.7 | O82: 1.7 | P82: 2.613888889 | Q82: 2.775 | R82: 0.95 | S82: 0.3636111111 | T82: 7648.238889 | U82: 8119.65 | V82: 2779.7 | W82: 2583.820556 | X82: 60.7 | Y82: 60.7 | Z82: 60.7 | AA82: 61.7 | AB82: 77.7 | AC82: 61.7 | AD82: 18574.29444 | AE82: 67857.075 | AF82: 23230.35 | AG82: 8891.3825 | AH82: 10926.05556 | AI82: 59737.425 | AJ82: 20450.65 | AK82: 6307.561944 | AL82: 16 | AM82: 174816.8889
A83: 2020-01-02T10:30:00 | B83: 77.8 | C83: 77 | D83: 9.22 | E83: 77 | F83: 9.89 | G83: 77 | H83: 3.35 | I83: 76 | J83: 1.585 | K83: 0.8 | L83: 0.8 | M83: 62.8 | N83: 0.8 | O83: 1.8 | P83: 2.561111111 | Q83: 2.747222222 | R83: 0.9305555556 | S83: 0.4402777778 | T83: 8564.355556 | U83: 9186.711111 | V83: 3111.777778 | W83: 3312.65 | X83: 60.8 | Y83: 60.8 | Z83: 60.8 | AA83: 61.8 | AB83: 77.8 | AC83: 61.8 | AD83: 19269.8 | AE83: 67177.825 | AF83: 22754.875 | AG83: 10766.1125 | AH83: 10705.44444 | AI83: 57991.11389 | AJ83: 19643.09722 | AK83: 7453.4625 | AL83: 16 | AM83: 171287.1111
A84: 2020-01-02T10:45:00 | B84: 78.3 | C84: 77 | D84: 9.42 | E84: 77 | F84: 9.64 | G84: 77 | H84: 3.18 | I84: 76 | J84: 1.315 | K84: 1.3 | L84: 1.3 | M84: 63.3 | N84: 1.3 | O84: 2.3 | P84: 2.616666667 | Q84: 2.677777778 | R84: 0.8833333333 | S84: 0.3652777778 | T84: 14218.96667 | U84: 14551.04444 | V84: 4800.033333 | W84: 3511.780556 | X84: 61.3 | Y84: 61.3 | Z84: 61.3 | AA84: 62.3 | AB84: 78.3 | AC84: 62.3 | AD84: 25156.63333 | AE84: 65479.7 | AF84: 21600.15 | AG84: 8932.1375 | AH84: 10937.66667 | AI84: 50928.65556 | AJ84: 16800.11667 | AK84: 5420.356944 | AL84: 16 | AM84: 175002.6667
A85: 2020-01-02T11:00:00 | B85: 78.2 | C85: 76 | D85: 8.97 | E85: 76 | F85: 9.96 | G85: 77 | H85: 3.2 | I85: 76 | J85: 1.63 | K85: 2.2 | L85: 2.2 | M85: 63.2 | N85: 1.2 | O85: 2.2 | P85: 2.491666667 | Q85: 2.766666667 | R85: 0.8888888889 | S85: 0.4527777778 | T85: 22913.36667 | U85: 25442.26667 | V85: 4458.666667 | W85: 4163.744444 | X85: 62.2 | Y85: 62.2 | Z85: 61.2 | AA85: 62.2 | AB85: 78.2 | AC85: 62.2 | AD85: 22913.36667 | AE85: 67653.3 | AF85: 21736 | AG85: 11071.775 | AH85: 0 | AI85: 42211.03333 | AJ85: 17277.33333 | AK85: 6908.030556 | AL85: 16 | AM85: 166642.6667
A86: 2020-01-02T11:15:00 | B86: 78.2 | C86: 77 | D86: 8.95 | E86: 77 | F86: 9.87 | G86: 77 | H86: 3.13 | I86: 76 | J86: 1.247 | K86: 1.2 | L86: 1.2 | M86: 63.2 | N86: 1.2 | O86: 2.2 | P86: 2.486111111 | Q86: 2.741666667 | R86: 0.8694444444 | S86: 0.3463888889 | T86: 12470.33333 | U86: 13752.2 | V86: 4361.133333 | W86: 3185.392222 | X86: 61.2 | Y86: 61.2 | Z86: 61.2 | AA86: 62.2 | AB86: 78.2 | AC86: 62.2 | AD86: 22862.27778 | AE86: 67041.975 | AF86: 21260.525 | AG86: 8470.2475 | AH86: 10391.94444 | AI86: 53289.775 | AJ86: 16899.39167 | AK86: 5284.855278 | AL86: 16 | AM86: 166271.1111
A87: 2020-01-02T11:30:00 | B87: 78.3 | C87: 77 | D87: 8.86 | E87: 77 | F87: 9.34 | G87: 77 | H87: 2.97 | I87: 76 | J87: 1.606 | K87: 1.3 | L87: 1.3 | M87: 63.3 | N87: 1.3 | O87: 2.3 | P87: 2.461111111 | Q87: 2.594444444 | R87: 0.825 | S87: 0.4461111111 | T87: 13373.67778 | U87: 14098.21111 | V87: 4483.05 | W87: 4288.912222 | X87: 61.3 | Y87: 61.3 | Z87: 61.3 | AA87: 62.3 | AB87: 78.3 | AC87: 62.3 | AD87: 23661.12222 | AE87: 63441.95 | AF87: 20173.725 | AG87: 10908.755 | AH87: 10287.44444 | AI87: 49343.73889 | AJ87: 15690.675 | AK87: 6619.842778 | AL87: 16 | AM87: 164599.1111
A88: 2020-01-02T11:45:00 | B88: 78.1 | C88: 77 | D88: 9.25 | E88: 77 | F88: 9.32 | G88: 76 | H88: 3.02 | I88: 76 | J88: 1.056 | K88: 1.1 | L88: 1.1 | M88: 63.1 | N88: 2.1 | O88: 2.1 | P88: 2.569444444 | Q88: 2.588888889 | R88: 0.8388888889 | S88: 0.2933333333 | T88: 11814.30556 | U88: 11903.71111 | V88: 7363.766667 | W88: 2574.88 | X88: 61.1 | Y88: 61.1 | Z88: 62.1 | AA88: 62.1 | AB88: 78.1 | AC88: 62.1 | AD88: 22554.58333 | AE88: 63306.1 | AF88: 20513.35 | AG88: 7172.88 | AH88: 10740.27778 | AI88: 51402.38889 | AJ88: 13149.58333 | AK88: 4598 | AL88: 16 | AM88: 171844.4444
A89: 2020-01-02T12:00:00 | B89: 78 | C89: 77 | D89: 8.95 | E89: 77 | F89: 8.36 | G89: 76 | H89: 3.04 | I89: 75 | J89: 1.012 | K89: 1 | L89: 1 | M89: 63 | N89: 2 | O89: 3 | P89: 2.486111111 | Q89: 2.322222222 | R89: 0.8444444444 | S89: 0.2811111111 | T89: 10391.94444 | U89: 9706.888889 | V89: 7059.555556 | W89: 3525.133333 | X89: 61 | Y89: 61 | Z89: 62 | AA89: 63 | AB89: 78 | AC89: 63 | AD89: 31175.83333 | AE89: 56785.3 | AF89: 20649.2 | AG89: 6874.01 | AH89: 20783.88889 | AI89: 47078.41111 | AJ89: 13589.64444 | AK89: 3348.876667 | AL89: 15 | AM89: 155879.1667
A90: 2020-01-02T12:15:00 | B90: 77.9 | C90: 77 | D90: 9.39 | E90: 77 | F90: 8.54 | G90: 77 | H90: 2.9 | I90: 76 | J90: 1.657 | K90: 0.9 | L90: 0.9 | M90: 62.9 | N90: 0.9 | O90: 1.9 | P90: 2.608333333 | Q90: 2.372222222 | R90: 0.8055555556 | S90: 0.4602777778 | T90: 9812.55 | U90: 8924.3 | V90: 3030.5 | W90: 3655.526111 | X90: 60.9 | Y90: 60.9 | Z90: 60.9 | AA90: 61.9 | AB90: 77.9 | AC90: 61.9 | AD90: 20715.38333 | AE90: 58007.95 | AF90: 19698.25 | AG90: 11255.1725 | AH90: 10902.83333 | AI90: 49083.65 | AJ90: 16667.75 | AK90: 7599.646389 | AL90: 16 | AM90: 174445.3333
A91: 2020-01-02T12:30:00 | B91: 77.6 | C91: 77 | D91: 9.27 | E91: 77 | F91: 8.49 | G91: 77 | H91: 2.74 | I91: 76 | J91: 1.519 | K91: 0.6 | L91: 0.6 | M91: 62.6 | N91: 0.6 | O91: 1.6 | P91: 2.575 | Q91: 2.358333333 | R91: 0.7611111111 | S91: 0.4219444444 | T91: 6458.1 | U91: 5914.7 | V91: 1908.866667 | W91: 2821.964444 | X91: 60.6 | Y91: 60.6 | Z91: 60.6 | AA91: 61.6 | AB91: 77.6 | AC91: 61.6 | AD91: 17221.6 | AE91: 57668.325 | AF91: 18611.45 | AG91: 10317.8075 | AH91: 10763.5 | AI91: 51753.625 | AJ91: 16702.58333 | AK91: 7495.843056 | AL91: 16 | AM91: 172216
A92: 2020-01-02T12:45:00 | B92: 77.9 | C92: 77 | D92: 9.08 | E92: 77 | F92: 8.55 | G92: 77 | H92: 2.8 | I92: 76 | J92: 1.556 | K92: 0.9 | L92: 0.9 | M92: 62.9 | N92: 0.9 | O92: 1.9 | P92: 2.522222222 | Q92: 2.375 | R92: 0.7777777778 | S92: 0.4322222222 | T92: 9488.6 | U92: 8934.75 | V92: 2926 | W92: 3432.708889 | X92: 60.9 | Y92: 60.9 | Z92: 60.9 | AA92: 61.9 | AB92: 77.9 | AC92: 61.9 | AD92: 20031.48889 | AE92: 58075.875 | AF92: 19019 | AG92: 10569.13 | AH92: 10542.88889 | AI92: 49141.125 | AJ92: 16093 | AK92: 7136.421111 | AL92: 16 | AM92: 168686.2222
A93: 2020-01-02T13:00:00 | B93: 78 | C93: 77 | D93: 9.08 | E93: 77 | F93: 8.69 | G93: 77 | H93: 2.79 | I93: 76 | J93: 1.567 | K93: 1 | L93: 1 | M93: 63 | N93: 1 | O93: 2 | P93: 2.522222222 | Q93: 2.413888889 | R93: 0.775 | S93: 0.4352777778 | T93: 10542.88889 | U93: 10090.05556 | V93: 3239.5 | W93: 3638.922222 | X93: 61 | Y93: 61 | Z93: 61 | AA93: 62 | AB93: 78 | AC93: 62 | AD93: 21085.77778 | AE93: 59026.825 | AF93: 18951.075 | AG93: 10643.8475 | AH93: 10542.88889 | AI93: 48936.76944 | AJ93: 15711.575 | AK93: 7004.925278 | AL93: 16 | AM93: 168686.2222
A94: 2020-01-02T13:15:00 | B94: 78.1 | C94: 77 | D94: 8.78 | E94: 77 | F94: 8.96 | G94: 77 | H94: 2.71 | I94: 76 | J94: 0.994 | K94: 1.1 | L94: 1.1 | M94: 63.1 | N94: 1.1 | O94: 2.1 | P94: 2.438888889 | Q94: 2.488888889 | R94: 0.7527777778 | S94: 0.2761111111 | T94: 11214.01111 | U94: 11443.91111 | V94: 3461.272222 | W94: 2423.703333 | X94: 61.1 | Y94: 61.1 | Z94: 61.1 | AA94: 62.1 | AB94: 78.1 | AC94: 62.1 | AD94: 21408.56667 | AE94: 60860.8 | AF94: 18407.675 | AG94: 6751.745 | AH94: 10194.55556 | AI94: 49416.88889 | AJ94: 14946.40278 | AK94: 4328.041667 | AL94: 16 | AM94: 163112.8889
A95: 2020-01-02T13:30:00 | B95: 77.6 | C95: 77 | D95: 8.72 | E95: 77 | F95: 9.05 | G95: 76 | H95: 2.59 | I95: 76 | J95: 1.466 | K95: 0.6 | L95: 0.6 | M95: 62.6 | N95: 1.6 | O95: 1.6 | P95: 2.422222222 | Q95: 2.513888889 | R95: 0.7194444444 | S95: 0.4072222222 | T95: 6074.933333 | U95: 6304.833333 | V95: 4811.644444 | W95: 2723.502222 | X95: 60.6 | Y95: 60.6 | Z95: 61.6 | AA95: 61.6 | AB95: 77.6 | AC95: 61.6 | AD95: 16199.82222 | AE95: 61472.125 | AF95: 17592.575 | AG95: 9957.805 | AH95: 10124.88889 | AI95: 55167.29167 | AJ95: 12780.93056 | AK95: 7234.302778 | AL95: 16 | AM95: 161998.2222
A96: 2020-01-02T13:45:00 | B96: 77.5 | C96: 77 | D96: 8.57 | E96: 77 | F96: 8.67 | G96: 76 | H96: 2.58 | I96: 76 | J96: 1.141 | K96: 0.5 | L96: 0.5 | M96: 62.5 | N96: 1.5 | O96: 1.5 | P96: 2.380555556 | Q96: 2.408333333 | R96: 0.7166666667 | S96: 0.3169444444 | T96: 4975.361111 | U96: 5033.416667 | V96: 4493.5 | W96: 1987.241667 | X96: 60.5 | Y96: 60.5 | Z96: 61.5 | AA96: 61.5 | AB96: 77.5 | AC96: 61.5 | AD96: 14926.08333 | AE96: 58890.975 | AF96: 17524.65 | AG96: 7750.2425 | AH96: 9950.722222 | AI96: 53857.55833 | AJ96: 13031.15 | AK96: 5763.000833 | AL96: 16 | AM96: 159211.5556
A97: 2020-01-02T14:00:00 | B97: 77.2 | C97: 77 | D97: 8.11 | E97: 77 | F97: 8.34 | G97: 76 | H97: 2.68 | I97: 75 | J97: 0.866 | K97: 0.2 | L97: 0.2 | M97: 62.2 | N97: 1.2 | O97: 2.2 | P97: 2.252777778 | Q97: 2.316666667 | R97: 0.7444444444 | S97: 0.2405555556 | T97: 1883.322222 | U97: 1936.733333 | V97: 3734.133333 | W97: 2212.148889 | X97: 60.2 | Y97: 60.2 | Z97: 61.2 | AA97: 62.2 | AB97: 77.2 | AC97: 62.2 | AD97: 20716.54444 | AE97: 56649.45 | AF97: 18203.9 | AG97: 5882.305 | AH97: 18833.22222 | AI97: 54712.71667 | AJ97: 14469.76667 | AK97: 3670.156111 | AL97: 15 | AM97: 141249.1667
A98: 2020-01-02T14:15:00 | B98: 77.3 | C98: 77 | D98: 8.19 | E98: 76 | F98: 8.19 | G98: 76 | H98: 2.61 | I98: 75 | J98: 0.902 | K98: 0.3 | L98: 1.3 | M98: 62.3 | N98: 1.3 | O98: 2.3 | P98: 2.275 | Q98: 2.275 | R98: 0.725 | S98: 0.2505555556 | T98: 2852.85 | U98: 12362.35 | V98: 3939.65 | W98: 2408.841111 | X98: 60.3 | Y98: 61.3 | Z98: 61.3 | AA98: 62.3 | AB98: 77.3 | AC98: 62.3 | AD98: 21871.85 | AE98: 55630.575 | AF98: 17728.425 | AG98: 6126.835 | AH98: 19019 | AI98: 43268.225 | AJ98: 13788.775 | AK98: 3717.993889 | AL98: 15 | AM98: 142642.5
A99: 2020-01-02T14:45:00 | B99: 76.9 | C99: 76 | D99: 8.24 | E99: 76 | F99: 8.44 | G99: 76 | H99: 2.52 | I99: 75 | J99: 1.164 | K99: 0.9 | L99: 0.9 | M99: 61.9 | N99: 0.9 | O99: 1.9 | P99: 2.288888889 | Q99: 2.344444444 | R99: 0.7 | S99: 0.3233333333 | T99: 8610.8 | U99: 8819.8 | V99: 2633.4 | W99: 2567.913333 | X99: 60.9 | Y99: 60.9 | Z99: 60.9 | AA99: 61.9 | AB99: 76.9 | AC99: 61.9 | AD99: 18178.35556 | AE99: 57328.7 | AF99: 17117.1 | AG99: 7906.47 | AH99: 9567.555556 | AI99: 48508.9 | AJ99: 14483.7 | AK99: 5338.556667 | AL99: 15 | AM99: 143513.3333
A100: 2020-01-02T15:00:00 | B100: 76.7 | C100: 76 | D100: 7.97 | E100: 76 | F100: 8.13 | G100: 76 | H100: 2.59 | I100: 75 | J100: 1.541 | K100: 0.7 | L100: 0.7 | M100: 61.7 | N100: 0.7 | O100: 1.7 | P100: 2.213888889 | Q100: 2.258333333 | R100: 0.7194444444 | S100: 0.4280555556 | T100: 6477.838889 | U100: 6607.883333 | V100: 2105.094444 | W100: 3041.762778 | X100: 60.7 | Y100: 60.7 | Z100: 60.7 | AA100: 61.7 | AB100: 76.7 | AC100: 61.7 | AD100: 15731.89444 | AE100: 55223.025 | AF100: 17592.575 | AG100: 10467.2425 | AH100: 9254.055556 | AI100: 48615.14167 | AJ100: 15487.48056 | AK100: 7425.479722 | AL100: 15 | AM100: 138810.8333
A101: 2020-01-02T15:15:00 | B101: 76.7 | C101: 76 | D101: 8.14 | E101: 76 | F101: 7.8 | G101: 76 | H101: 2.63 | I101: 75 | J101: 1.568 | K101: 0.7 | L101: 0.7 | M101: 61.7 | N101: 0.7 | O101: 1.7 | P101: 2.261111111 | Q101: 2.166666667 | R101: 0.7305555556 | S101: 0.4355555556 | T101: 6616.011111 | U101: 6339.666667 | V101: 2137.605556 | W101: 3095.057778 | X101: 60.7 | Y101: 60.7 | Z101: 60.7 | AA101: 61.7 | AB101: 76.7 | AC101: 61.7 | AD101: 16067.45556 | AE101: 52981.5 | AF101: 17864.275 | AG101: 10650.64 | AH101: 9451.444444 | AI101: 46641.83333 | AJ101: 15726.66944 | AK101: 7555.582222 | AL101: 15 | AM101: 141771.6667
A102: 2020-01-02T15:30:00 | B102: 76.6 | C102: 76 | D102: 8.12 | E102: 76 | F102: 7.87 | G102: 76 | H102: 2.62 | I102: 75 | J102: 1.278 | K102: 0.6 | L102: 0.6 | M102: 61.6 | N102: 0.6 | O102: 1.6 | P102: 2.255555556 | Q102: 2.186111111 | R102: 0.7277777778 | S102: 0.355 | T102: 5656.933333 | U102: 5482.766667 | V102: 1825.266667 | W102: 2374.24 | X102: 60.6 | Y102: 60.6 | Z102: 60.6 | AA102: 61.6 | AB102: 76.6 | AC102: 61.6 | AD102: 15085.15556 | AE102: 53456.975 | AF102: 17796.35 | AG102: 8680.815 | AH102: 9428.222222 | AI102: 47974.20833 | AJ102: 15971.08333 | AK102: 6306.575 | AL102: 15 | AM102: 141423.3333
A103: 2020-01-02T15:45:00 | B103: 76.7 | C103: 76 | D103: 8.28 | E103: 76 | F103: 8.38 | G103: 76 | H103: 2.57 | I103: 75 | J103: 1.698 | K103: 0.7 | L103: 0.7 | M103: 61.7 | N103: 0.7 | O103: 1.7 | P103: 2.3 | Q103: 2.327777778 | R103: 0.7138888889 | S103: 0.4716666667 | T103: 6729.8 | U103: 6811.077778 | V103: 2088.838889 | W103: 3351.663333 | X103: 60.7 | Y103: 60.7 | Z103: 60.7 | AA103: 61.7 | AB103: 76.7 | AC103: 61.7 | AD103: 16343.8 | AE103: 56921.15 | AF103: 17456.725 | AG103: 11533.665 | AH103: 9614 | AI103: 50110.07222 | AJ103: 15367.88611 | AK103: 8182.001667 | AL103: 15 | AM103: 144210
A104: 2020-01-02T16:00:00 | B104: 76.5 | C104: 76 | D104: 8.3 | E104: 76 | F104: 8.41 | G104: 75 | H104: 2.63 | I104: 75 | J104: 1.663 | K104: 0.5 | L104: 0.5 | M104: 61.5 | N104: 1.5 | O104: 1.5 | P104: 2.305555556 | Q104: 2.336111111 | R104: 0.7305555556 | S104: 0.4619444444 | T104: 4818.611111 | U104: 4882.472222 | V104: 4580.583333 | W104: 2896.391667 | X104: 60.5 | Y104: 60.5 | Z104: 61.5 | AA104: 61.5 | AB104: 76.5 | AC104: 61.5 | AD104: 14455.83333 | AE104: 57124.925 | AF104: 17864.275 | AG104: 11295.9275 | AH104: 9637.222222 | AI104: 52242.45278 | AJ104: 13283.69167 | AK104: 8399.535833 | AL104: 15 | AM104: 144558.3333
A105: 2020-01-02T16:15:00 | B105: 76.2 | C105: 75 | D105: 9.7 | E105: 75 | F105: 8.87 | G105: 75 | H105: 1.99 | I105: 75 | J105: 1.223 | K105: 1.2 | L105: 1.2 | M105: 61.2 | N105: 1.2 | O105: 1.2 | P105: 2.694444444 | Q105: 2.463888889 | R105: 0.5527777778 | S105: 0.3397222222 | T105: 13515.33333 | U105: 12358.86667 | V105: 2772.733333 | W105: 1704.046667 | X105: 61.2 | Y105: 61.2 | Z105: 61.2 | AA105: 61.2 | AB105: 76.2 | AC105: 61.2 | AD105: 13515.33333 | AE105: 60249.475 | AF105: 13517.075 | AG105: 8307.2275 | AH105: 3.274180926e-11 | AI105: 47890.60833 | AJ105: 10744.34167 | AK105: 6603.180833 | AL105: 15 | AM105: 168941.6667
A106: 2020-01-02T16:30:00 | B106: 76.2 | C106: 75 | D106: 9.89 | E106: 75 | F106: 9.03 | G106: 75 | H106: 2.14 | I106: 75 | J106: 1.19 | K106: 1.2 | L106: 1.2 | M106: 61.2 | N106: 1.2 | O106: 1.2 | P106: 2.747222222 | Q106: 2.508333333 | R106: 0.5944444444 | S106: 0.3305555556 | T106: 13780.06667 | U106: 12581.8 | V106: 2981.733333 | W106: 1658.066667 | X106: 61.2 | Y106: 61.2 | Z106: 61.2 | AA106: 61.2 | AB106: 76.2 | AC106: 61.2 | AD106: 13780.06667 | AE106: 61336.275 | AF106: 14535.95 | AG106: 8083.075 | AH106: 3.274180926e-11 | AI106: 48754.475 | AJ106: 11554.21667 | AK106: 6425.008333 | AL106: 15 | AM106: 172250.8333
A107: 2020-01-02T16:45:00 | B107: 76.4 | C107: 75 | D107: 10.3 | E107: 75 | F107: 8.8 | G107: 75 | H107: 2.34 | I107: 74 | J107: 1.591 | K107: 1.4 | L107: 1.4 | M107: 61.4 | N107: 1.4 | O107: 2.4 | P107: 2.861111111 | Q107: 2.444444444 | R107: 0.65 | S107: 0.4419444444 | T107: 16743.22222 | U107: 14304.88889 | V107: 3803.8 | W107: 4433.586667 | X107: 61.4 | Y107: 61.4 | Z107: 61.4 | AA107: 62.4 | AB107: 76.4 | AC107: 62.4 | AD107: 28702.66667 | AE107: 59774 | AF107: 15894.45 | AG107: 10806.8675 | AH107: 11959.44444 | AI107: 45469.11111 | AJ107: 12090.65 | AK107: 6373.280833 | AL107: 14 | AM107: 167432.2222
A108: 2020-01-02T17:00:00 | B108: 76.4 | C108: 75 | D108: 10.43 | E108: 75 | F108: 9.1 | G108: 75 | H108: 2.36 | I108: 74 | J108: 1.303 | K108: 1.4 | L108: 1.4 | M108: 61.4 | N108: 1.4 | O108: 2.4 | P108: 2.897222222 | Q108: 2.527777778 | R108: 0.6555555556 | S108: 0.3619444444 | T108: 16954.54444 | U108: 14792.55556 | V108: 3836.311111 | W108: 3631.026667 | X108: 61.4 | Y108: 61.4 | Z108: 61.4 | AA108: 62.4 | AB108: 76.4 | AC108: 62.4 | AD108: 29064.93333 | AE108: 61811.75 | AF108: 16030.3 | AG108: 8850.6275 | AH108: 12110.38889 | AI108: 47019.19444 | AJ108: 12193.98889 | AK108: 5219.600833 | AL108: 14 | AM108: 169545.4444
A109: 2020-01-02T17:15:00 | B109: 76.3 | C109: 75 | D109: 10.34 | E109: 75 | F109: 9.78 | G109: 75 | H109: 2.42 | I109: 74 | J109: 1.331 | K109: 1.3 | L109: 1.3 | M109: 61.3 | N109: 1.3 | O109: 2.3 | P109: 2.872222222 | Q109: 2.716666667 | R109: 0.6722222222 | S109: 0.3697222222 | T109: 15607.65556 | U109: 14762.36667 | V109: 3652.855556 | W109: 3554.509444 | X109: 61.3 | Y109: 61.3 | Z109: 61.3 | AA109: 62.3 | AB109: 76.3 | AC109: 62.3 | AD109: 27613.54444 | AE109: 66430.65 | AF109: 16437.85 | AG109: 9040.8175 | AH109: 12005.88889 | AI109: 51668.28333 | AJ109: 12784.99444 | AK109: 5486.308056 | AL109: 14 | AM109: 168082.4444
A110: 2020-01-02T17:30:00 | B110: 76.3 | C110: 75 | D110: 10.65 | E110: 75 | F110: 9.56 | G110: 75 | H110: 2.44 | I110: 74 | J110: 1.627 | K110: 1.3 | L110: 1.3 | M110: 61.3 | N110: 1.3 | O110: 2.3 | P110: 2.958333333 | Q110: 2.655555556 | R110: 0.6777777778 | S110: 0.4519444444 | T110: 16075.58333 | U110: 14430.28889 | V110: 3683.044444 | W110: 4344.993889 | X110: 61.3 | Y110: 61.3 | Z110: 61.3 | AA110: 62.3 | AB110: 76.3 | AC110: 62.3 | AD110: 28441.41667 | AE110: 64936.3 | AF110: 16573.7 | AG110: 11051.3975 | AH110: 12365.83333 | AI110: 50506.01111 | AJ110: 12890.65556 | AK110: 6706.403611 | AL110: 14 | AM110: 173121.6667
A111: 2020-01-02T17:45:00 | B111: 75.9 | C111: 75 | D111: 10.5 | E111: 75 | F111: 10.31 | G111: 75 | H111: 2.5 | I111: 74 | J111: 1.259 | K111: 0.9 | L111: 0.9 | M111: 60.9 | N111: 0.9 | O111: 1.9 | P111: 2.916666667 | Q111: 2.863888889 | R111: 0.6944444444 | S111: 0.3497222222 | T111: 10972.5 | U111: 10773.95 | V111: 2612.5 | W111: 2777.493889 | X111: 60.9 | Y111: 60.9 | Z111: 60.9 | AA111: 61.9 | AB111: 75.9 | AC111: 61.9 | AD111: 23164.16667 | AE111: 70030.675 | AF111: 16981.25 | AG111: 8551.7575 | AH111: 12191.66667 | AI111: 59256.725 | AJ111: 14368.75 | AK111: 5774.263611 | AL111: 14 | AM111: 170683.3333
A112: 2020-01-02T18:00:00 | B112: 76 | C112: 75 | D112: 10.2 | E112: 75 | F112: 10.44 | G112: 75 | H112: 2.43 | I112: 74 | J112: 1.561 | K112: 1 | L112: 1 | M112: 61 | N112: 1 | O112: 2 | P112: 2.833333333 | Q112: 2.9 | R112: 0.675 | S112: 0.4336111111 | T112: 11843.33333 | U112: 12122 | V112: 2821.5 | W112: 3624.988889 | X112: 61 | Y112: 61 | Z112: 61 | AA112: 62 | AB112: 76 | AC112: 62 | AD112: 23686.66667 | AE112: 70913.7 | AF112: 16505.775 | AG112: 10603.0925 | AH112: 11843.33333 | AI112: 58791.7 | AJ112: 13684.275 | AK112: 6978.103611 | AL112: 14 | AM112: 165806.6667
A113: 2020-01-02T18:15:00 | B113: 76.3 | C113: 75 | D113: 10.57 | E113: 75 | F113: 10.44 | G113: 74 | H113: 2.44 | I113: 74 | J113: 1.601 | K113: 1.3 | L113: 1.3 | M113: 61.3 | N113: 2.3 | O113: 2.3 | P113: 2.936111111 | Q113: 2.9 | R113: 0.6777777778 | S113: 0.4447222222 | T113: 15954.82778 | U113: 15758.6 | V113: 6516.155556 | W113: 4275.559444 | X113: 61.3 | Y113: 61.3 | Z113: 62.3 | AA113: 62.3 | AB113: 76.3 | AC113: 62.3 | AD113: 28227.77222 | AE113: 70913.7 | AF113: 16573.7 | AG113: 10874.7925 | AH113: 12272.94444 | AI113: 55155.1 | AJ113: 10057.54444 | AK113: 6599.233056 | AL113: 14 | AM113: 171821.2222
A114: 2020-01-02T18:30:00 | B114: 76.1 | C114: 75 | D114: 10.91 | E114: 75 | F114: 10.59 | G114: 75 | H114: 2.5 | I114: 74 | J114: 1.271 | K114: 1.1 | L114: 1.1 | M114: 61.1 | N114: 1.1 | O114: 2.1 | P114: 3.030555556 | Q114: 2.941666667 | R114: 0.6944444444 | S114: 0.3530555556 | T114: 13934.49444 | U114: 13525.78333 | V114: 3193.055556 | W114: 3099.121667 | X114: 61.1 | Y114: 61.1 | Z114: 61.1 | AA114: 62.1 | AB114: 76.1 | AC114: 62.1 | AD114: 26602.21667 | AE114: 71932.575 | AF114: 16981.25 | AG114: 8633.2675 | AH114: 12667.72222 | AI114: 58406.79167 | AJ114: 13788.19444 | AK114: 5534.145833 | AL114: 14 | AM114: 177348.1111
A115: 2020-01-02T18:45:00 | B115: 76.3 | C115: 75 | D115: 11.01 | E115: 75 | F115: 10.35 | G115: 74 | H115: 2.53 | I115: 74 | J115: 1.545 | K115: 1.3 | L115: 1.3 | M115: 61.3 | N115: 2.3 | O115: 2.3 | P115: 3.058333333 | Q115: 2.875 | R115: 0.7027777778 | S115: 0.4291666667 | T115: 16618.98333 | U115: 15622.75 | V115: 6756.505556 | W115: 4126.008333 | X115: 61.3 | Y115: 61.3 | Z115: 62.3 | AA115: 62.3 | AB115: 76.3 | AC115: 62.3 | AD115: 29402.81667 | AE115: 70302.375 | AF115: 17185.025 | AG115: 10494.4125 | AH115: 12783.83333 | AI115: 54679.625 | AJ115: 10428.51944 | AK115: 6368.404167 | AL115: 14 | AM115: 178973.6667
A116: 2020-01-02T19:00:00 | B116: 76.1 | C116: 75 | D116: 11.18 | E116: 75 | F116: 10.06 | G116: 74 | H116: 2.57 | I116: 74 | J116: 1.29 | K116: 1.1 | L116: 1.1 | M116: 61.1 | N116: 2.1 | O116: 2.1 | P116: 3.105555556 | Q116: 2.794444444 | R116: 0.7138888889 | S116: 0.3583333333 | T116: 14279.34444 | U116: 12848.85556 | V116: 6266.516667 | W116: 3145.45 | X116: 61.1 | Y116: 61.1 | Z116: 62.1 | AA116: 62.1 | AB116: 76.1 | AC116: 62.1 | AD116: 27260.56667 | AE116: 68332.55 | AF116: 17456.725 | AG116: 8762.325 | AH116: 12981.22222 | AI116: 55483.69444 | AJ116: 11190.20833 | AK116: 5616.875 | AL116: 14 | AM116: 181737.1111
A117: 2020-01-02T19:15:00 | B117: 76.4 | C117: 75 | D117: 11.33 | E117: 75 | F117: 10.04 | G117: 74 | H117: 2.63 | I117: 74 | J117: 1.46 | K117: 1.4 | L117: 1.4 | M117: 61.4 | N117: 2.4 | O117: 2.4 | P117: 3.147222222 | Q117: 2.788888889 | R117: 0.7305555556 | S117: 0.4055555556 | T117: 18417.54444 | U117: 16320.57778 | V117: 7328.933333 | W117: 4068.533333 | X117: 61.4 | Y117: 61.4 | Z117: 62.4 | AA117: 62.4 | AB117: 76.4 | AC117: 62.4 | AD117: 31572.93333 | AE117: 68196.7 | AF117: 17864.275 | AG117: 9917.05 | AH117: 13155.38889 | AI117: 51876.12222 | AJ117: 10535.34167 | AK117: 5848.516667 | AL117: 14 | AM117: 184175.4444
A118: 2020-01-02T19:30:00 | B118: 76.1 | C118: 75 | D118: 11.19 | E118: 75 | F118: 10.03 | G118: 75 | H118: 2.55 | I118: 74 | J118: 1.525 | K118: 1.1 | L118: 1.1 | M118: 61.1 | N118: 1.1 | O118: 2.1 | P118: 3.108333333 | Q118: 2.786111111 | R118: 0.7083333333 | S118: 0.4236111111 | T118: 14292.11667 | U118: 12810.53889 | V118: 3256.916667 | W118: 3718.458333 | X118: 61.1 | Y118: 61.1 | Z118: 61.1 | AA118: 62.1 | AB118: 76.1 | AC118: 62.1 | AD118: 27284.95 | AE118: 68128.775 | AF118: 17320.875 | AG118: 10358.5625 | AH118: 12992.83333 | AI118: 55318.23611 | AJ118: 14063.95833 | AK118: 6640.104167 | AL118: 14 | AM118: 181899.6667
A119: 2020-01-02T19:45:00 | B119: 76.3 | C119: 75 | D119: 11.5 | E119: 75 | F119: 10.06 | G119: 75 | H119: 2.56 | I119: 74 | J119: 1.069 | K119: 1.3 | L119: 1.3 | M119: 61.3 | N119: 1.3 | O119: 2.3 | P119: 3.194444444 | Q119: 2.794444444 | R119: 0.7111111111 | S119: 0.2969444444 | T119: 17358.61111 | U119: 15185.01111 | V119: 3864.177778 | W119: 2854.823889 | X119: 61.3 | Y119: 61.3 | Z119: 61.3 | AA119: 62.3 | AB119: 76.3 | AC119: 62.3 | AD119: 30711.38889 | AE119: 68332.55 | AF119: 17388.8 | AG119: 7261.1825 | AH119: 13352.77778 | AI119: 53147.53889 | AJ119: 13524.62222 | AK119: 4406.358611 | AL119: 14 | AM119: 186938.8889
A120: 2020-01-02T20:15:00 | B120: 76.2 | C120: 75 | D120: 11.87 | E120: 75 | F120: 9.93 | G120: 75 | H120: 2.62 | I120: 73 | J120: 0.463 | K120: 1.2 | L120: 1.2 | M120: 61.2 | N120: 1.2 | O120: 3.2 | P120: 3.297222222 | Q120: 2.758333333 | R120: 0.7277777778 | S120: 0.1286111111 | T120: 16538.86667 | U120: 13835.8 | V120: 3650.533333 | W120: 1720.302222 | X120: 61.2 | Y120: 61.2 | Z120: 61.2 | AA120: 63.2 | AB120: 76.2 | AC120: 63.2 | AD120: 44103.64444 | AE120: 67449.525 | AF120: 17796.35 | AG120: 3144.9275 | AH120: 27564.77778 | AI120: 53613.725 | AJ120: 14145.81667 | AK120: 1424.625278 | AL120: 13 | AM120: 179171.0556
A121: 2020-01-03T05:00:00 | B121: 78.1 | C121: 77 | D121: 10.18 | E121: 77 | F121: 8.41 | G121: 77 | H121: 7.51 | I121: 74 | J121: 1.312 | K121: 1.1 | L121: 1.1 | M121: 63.1 | N121: 1.1 | O121: 4.1 | P121: 2.827777778 | Q121: 2.336111111 | R121: 2.086111111 | S121: 0.3644444444 | T121: 13002.12222 | U121: 10741.43889 | V121: 9591.938889 | W121: 6245.848889 | X121: 61.1 | Y121: 61.1 | Z121: 61.1 | AA121: 64.1 | AB121: 78.1 | AC121: 64.1 | AD121: 48462.45556 | AE121: 57124.925 | AF121: 51011.675 | AG121: 8911.76 | AH121: 35460.33333 | AI121: 46383.48611 | AJ121: 41419.73611 | AK121: 2665.911111 | AL121: 14 | AM121: 165481.5556
A122: 2020-01-03T05:15:00 | B122: 78.1 | C122: 77 | D122: 10.29 | E122: 77 | F122: 8.86 | G122: 77 | H122: 7.58 | I122: 76 | J122: 2.193 | K122: 1.1 | L122: 1.1 | M122: 63.1 | N122: 1.1 | O122: 2.1 | P122: 2.858333333 | Q122: 2.461111111 | R122: 2.105555556 | S122: 0.6091666667 | T122: 13142.61667 | U122: 11316.18889 | V122: 9681.344444 | W122: 5347.265 | X122: 61.1 | Y122: 61.1 | Z122: 61.1 | AA122: 62.1 | AB122: 78.1 | AC122: 62.1 | AD122: 25090.45 | AE122: 60181.55 | AF122: 51487.15 | AG122: 14895.9525 | AH122: 11947.83333 | AI122: 48865.36111 | AJ122: 41805.80556 | AK122: 9548.6875 | AL122: 16 | AM122: 191165.3333
A123: 2020-01-03T05:30:00 | B123: 78.1 | C123: 77 | D123: 10.12 | E123: 77 | F123: 8.73 | G123: 77 | H123: 7.45 | I123: 76 | J123: 2.294 | K123: 1.1 | L123: 1.1 | M123: 63.1 | N123: 1.1 | O123: 2.1 | P123: 2.811111111 | Q123: 2.425 | R123: 2.069444444 | S123: 0.6372222222 | T123: 12925.48889 | U123: 11150.15 | V123: 9515.305556 | W123: 5593.536667 | X123: 61.1 | Y123: 61.1 | Z123: 61.1 | AA123: 62.1 | AB123: 78.1 | AC123: 62.1 | AD123: 24675.93333 | AE123: 59298.525 | AF123: 50604.125 | AG123: 15581.995 | AH123: 11750.44444 | AI123: 48148.375 | AJ123: 41088.81944 | AK123: 9988.458333 | AL123: 16 | AM123: 188007.1111
A124: 2020-01-03T05:45:00 | B124: 78 | C124: 77 | D124: 10.14 | E124: 77 | F124: 8.42 | G124: 77 | H124: 7.54 | I124: 76 | J124: 2.33 | K124: 1 | L124: 1 | M124: 63 | N124: 1 | O124: 2 | P124: 2.816666667 | Q124: 2.338888889 | R124: 2.094444444 | S124: 0.6472222222 | T124: 11773.66667 | U124: 9776.555556 | V124: 8754.777778 | W124: 5410.777778 | X124: 61 | Y124: 61 | Z124: 61 | AA124: 62 | AB124: 78 | AC124: 62 | AD124: 23547.33333 | AE124: 57192.85 | AF124: 51215.45 | AG124: 15826.525 | AH124: 11773.66667 | AI124: 47416.29444 | AJ124: 42460.67222 | AK124: 10415.74722 | AL124: 16 | AM124: 188378.6667
A125: 2020-01-03T06:00:00 | B125: 78.4 | C125: 77 | D125: 10.21 | E125: 77 | F125: 8.23 | G125: 77 | H125: 7.51 | I125: 76 | J125: 2.296 | K125: 1.4 | L125: 1.4 | M125: 63.4 | N125: 1.4 | O125: 2.4 | P125: 2.836111111 | Q125: 2.286111111 | R125: 2.086111111 | S125: 0.6377777778 | T125: 16596.92222 | U125: 13378.32222 | V125: 12207.92222 | W125: 6398.186667 | X125: 61.4 | Y125: 61.4 | Z125: 61.4 | AA125: 62.4 | AB125: 78.4 | AC125: 62.4 | AD125: 28451.86667 | AE125: 55902.275 | AF125: 51011.675 | AG125: 15595.58 | AH125: 11854.94444 | AI125: 42523.95278 | AJ125: 38803.75278 | AK125: 9197.393333 | AL125: 16 | AM125: 189679.1111
A126: 2020-01-03T06:15:00 | B126: 78.3 | C126: 77 | D126: 10.16 | E126: 77 | F126: 8.25 | G126: 77 | H126: 3.7 | I126: 76 | J126: 2.241 | K126: 1.3 | L126: 1.3 | M126: 63.3 | N126: 1.3 | O126: 2.3 | P126: 2.822222222 | Q126: 2.291666667 | R126: 1.027777778 | S126: 0.6225 | T126: 15335.95556 | U126: 12452.91667 | V126: 5584.944444 | W126: 5984.715 | X126: 61.3 | Y126: 61.3 | Z126: 61.3 | AA126: 62.3 | AB126: 78.3 | AC126: 62.3 | AD126: 27132.84444 | AE126: 56038.125 | AF126: 25132.25 | AG126: 15221.9925 | AH126: 11796.88889 | AI126: 43585.20833 | AJ126: 19547.30556 | AK126: 9237.2775 | AL126: 16 | AM126: 188750.2222
A127: 2020-01-03T06:30:00 | B127: 78.4 | C127: 78 | D127: 10.33 | E127: 77 | F127: 8.27 | G127: 77 | H127: 3.18 | I127: 76 | J127: 2.286 | K127: 0.4 | L127: 1.4 | M127: 63.4 | N127: 1.4 | O127: 2.4 | P127: 2.869444444 | Q127: 2.297222222 | R127: 0.8833333333 | S127: 0.635 | T127: 4797.711111 | U127: 13443.34444 | V127: 5169.266667 | W127: 6370.32 | X127: 60.4 | Y127: 61.4 | Z127: 61.4 | AA127: 62.4 | AB127: 78.4 | AC127: 62.4 | AD127: 28786.26667 | AE127: 56173.975 | AF127: 21600.15 | AG127: 15527.655 | AH127: 23988.55556 | AI127: 42730.63056 | AJ127: 16430.88333 | AK127: 9157.335 | AL127: 16 | AM127: 191908.4444
A128: 2020-01-03T06:45:00 | B128: 78.4 | C128: 77 | D128: 10.21 | E128: 78 | F128: 8.48 | G128: 77 | H128: 3.32 | I128: 76 | J128: 2.25 | K128: 1.4 | L128: 0.4 | M128: 63.4 | N128: 1.4 | O128: 2.4 | P128: 2.836111111 | Q128: 2.355555556 | R128: 0.9222222222 | S128: 0.625 | T128: 16596.92222 | U128: 3938.488889 | V128: 5396.844444 | W128: 6270 | X128: 61.4 | Y128: 60.4 | Z128: 61.4 | AA128: 62.4 | AB128: 78.4 | AC128: 62.4 | AD128: 28451.86667 | AE128: 57600.4 | AF128: 22551.1 | AG128: 15283.125 | AH128: 11854.94444 | AI128: 53661.91111 | AJ128: 17154.25556 | AK128: 9013.125 | AL128: 16 | AM128: 189679.1111
A129: 2020-01-03T07:00:00 | B129: 78.4 | C129: 77 | D129: 10.5 | E129: 77 | F129: 8.54 | G129: 77 | H129: 3.36 | I129: 76 | J129: 2.26 | K129: 1.4 | L129: 1.4 | M129: 63.4 | N129: 1.4 | O129: 2.4 | P129: 2.916666667 | Q129: 2.372222222 | R129: 0.9333333333 | S129: 0.6277777778 | T129: 17068.33333 | U129: 13882.24444 | V129: 5461.866667 | W129: 6297.866667 | X129: 61.4 | Y129: 61.4 | Z129: 61.4 | AA129: 62.4 | AB129: 78.4 | AC129: 62.4 | AD129: 29260 | AE129: 58007.95 | AF129: 22822.8 | AG129: 15351.05 | AH129: 12191.66667 | AI129: 44125.70556 | AJ129: 17360.93333 | AK129: 9053.183333 | AL129: 16 | AM129: 195066.6667
A130: 2020-01-03T07:15:00 | B130: 78.4 | C130: 77 | D130: 10.16 | E130: 77 | F130: 8.72 | G130: 77 | H130: 3.39 | I130: 76 | J130: 2.267 | K130: 1.4 | L130: 1.4 | M130: 63.4 | N130: 1.4 | O130: 2.4 | P130: 2.822222222 | Q130: 2.422222222 | R130: 0.9416666667 | S130: 0.6297222222 | T130: 16515.64444 | U130: 14174.84444 | V130: 5510.633333 | W130: 6317.373333 | X130: 61.4 | Y130: 61.4 | Z130: 61.4 | AA130: 62.4 | AB130: 78.4 | AC130: 62.4 | AD130: 28312.53333 | AE130: 59230.6 | AF130: 23026.575 | AG130: 15398.5975 | AH130: 11796.88889 | AI130: 45055.75556 | AJ130: 17515.94167 | AK130: 9081.224167 | AL130: 16 | AM130: 188750.2222
A131: 2020-01-03T07:30:00 | B131: 78.5 | C131: 77 | D131: 10.15 | E131: 77 | F131: 9.45 | G131: 77 | H131: 3.52 | I131: 77 | J131: 2.068 | K131: 1.5 | L131: 1.5 | M131: 63.5 | N131: 1.5 | O131: 1.5 | P131: =D131*1000/3600 -> 2.819444444 | Q131: =F131*1000/3600 -> 2.625 | R131: =H131*1000/3600 -> 0.9777777778 | S131: =J131*1000/3600 -> 0.5744444444 | T131: =P131*4180*K131 -> 17677.91667 | U131: =Q131*4180*L131 -> 16458.75 | V131: =R131*4180*N131 -> 6130.666667 | W131: =S131*4180*O131 -> 3601.766667 | X131: =(T131/(P131*4180))+60 -> 61.5 | Y131: =(U131/(Q131*4180))+60 -> 61.5 | Z131: 61.5 | AA131: =(W131/(S131*4180))+60 -> 61.5 | AB131: =B131 -> 78.5 | AC131: =MAX(X131:AA131) -> 61.5 | AD131: =P131*4180*(AC131-60) -> 17677.91667 | AE131: =Q131*4180*($AC$2-60) -> 64189.125 | AF131: =R131*4180*($AC$2-60) -> 23909.6 | AG131: 14046.89 | AH131: =AD131-T131 -> 0 | AI131: =AE131-U131 -> 47730.375 | AJ131: =AF131-V131 -> 17778.93333 | AK131: =AG131-W131 -> 10445.12333 | AL131: =AB131-AC131 -> 17 | AM131: =P131*4180*(AB131-AC131) -> 200349.7222
A132: 2020-01-03T07:45:00 | B132: 78.2 | C132: 78 | D132: 10.41 | E132: 77 | F132: 9.52 | G132: 77 | H132: 3.46 | I132: 76 | J132: 1.598 | K132: 0.2 | L132: 1.2 | M132: 63.2 | N132: 1.2 | O132: 2.2 | P132: 2.891666667 | Q132: 2.644444444 | R132: 0.9611111111 | S132: 0.4438888889 | T132: 2417.433333 | U132: 13264.53333 | V132: 4820.933333 | W132: 4082.002222 | X132: 60.2 | Y132: 61.2 | Z132: 61.2 | AA132: 62.2 | AB132: 78.2 | AC132: 62.2 | AD132: 26591.76667 | AE132: 64664.6 | AF132: 23502.05 | AG132: 10854.415 | AH132: 24174.33333 | AI132: 51400.06667 | AJ132: 18681.11667 | AK132: 6772.412778 | AL132: 16 | AM132: 193394.6667
A133: 2020-01-03T08:00:00 | B133: 78.3 | C133: 78 | D133: 10.49 | E133: 78 | F133: 10.4 | G133: 77 | H133: 3.43 | I133: 76 | J133: 1.49 | K133: 0.3 | L133: 0.3 | M133: 63.3 | N133: 1.3 | O133: 2.3 | P133: 2.913888889 | Q133: 2.888888889 | R133: 0.9527777778 | S133: 0.4138888889 | T133: 3654.016667 | U133: 3622.666667 | V133: 5177.394444 | W133: 3979.127778 | X133: 60.3 | Y133: 60.3 | Z133: 61.3 | AA133: 62.3 | AB133: 78.3 | AC133: 62.3 | AD133: 28014.12778 | AE133: 70642 | AF133: 23298.275 | AG133: 10120.825 | AH133: 24360.11111 | AI133: 67019.33333 | AJ133: 18120.88056 | AK133: 6141.697222 | AL133: 16 | AM133: 194880.8889
A134: 2020-01-03T08:15:00 | B134: 78.4 | C134: 78 | D134: 10.4 | E134: 78 | F134: 9.84 | G134: 77 | H134: 3.44 | I134: 76 | J134: 1.436 | K134: 0.4 | L134: 0.4 | M134: 63.4 | N134: 1.4 | O134: 2.4 | P134: 2.888888889 | Q134: 2.733333333 | R134: 0.9555555556 | S134: 0.3988888889 | T134: 4830.222222 | U134: 4570.133333 | V134: 5591.911111 | W134: 4001.653333 | X134: 60.4 | Y134: 60.4 | Z134: 61.4 | AA134: 62.4 | AB134: 78.4 | AC134: 62.4 | AD134: 28981.33333 | AE134: 66838.2 | AF134: 23366.2 | AG134: 9754.03 | AH134: 24151.11111 | AI134: 62268.06667 | AJ134: 17774.28889 | AK134: 5752.376667 | AL134: 16 | AM134: 193208.8889
A135: 2020-01-03T08:30:00 | B135: 78.6 | C135: 78 | D135: 10.76 | E135: 78 | F135: 9.76 | G135: 77 | H135: 3.24 | I135: 76 | J135: 1.473 | K135: 0.6 | L135: 0.6 | M135: 63.6 | N135: 1.6 | O135: 2.6 | P135: 2.988888889 | Q135: 2.711111111 | R135: 0.9 | S135: 0.4091666667 | T135: 7496.133333 | U135: 6799.466667 | V135: 6019.2 | W135: 4446.823333 | X135: 60.6 | Y135: 60.6 | Z135: 61.6 | AA135: 62.6 | AB135: 78.6 | AC135: 62.6 | AD135: 32483.24444 | AE135: 66294.8 | AF135: 22007.7 | AG135: 10005.3525 | AH135: 24987.11111 | AI135: 59495.33333 | AJ135: 15988.5 | AK135: 5558.529167 | AL135: 16 | AM135: 199896.8889
A136: 2020-01-03T08:45:00 | B136: 78.5 | C136: 77 | D136: 11.04 | E136: 78 | F136: 9.93 | G136: 77 | H136: 3.2 | I136: 77 | J136: 1.206 | K136: 1.5 | L136: 0.5 | M136: 63.5 | N136: 1.5 | O136: 1.5 | P136: 3.066666667 | Q136: 2.758333333 | R136: 0.8888888889 | S136: 0.335 | T136: 19228 | U136: 5764.916667 | V136: 5573.333333 | W136: 2100.45 | X136: 61.5 | Y136: 60.5 | Z136: 61.5 | AA136: 61.5 | AB136: 78.5 | AC136: 61.5 | AD136: 19228 | AE136: 67449.525 | AF136: 21736 | AG136: 8191.755 | AH136: 0 | AI136: 61684.60833 | AJ136: 16162.66667 | AK136: 6091.305 | AL136: 17 | AM136: 217917.3333
A137: 2020-01-03T09:00:00 | B137: 78.4 | C137: 78 | D137: 11.34 | E137: 77 | F137: 9.92 | G137: 77 | H137: 3.32 | I137: 76 | J137: 1.571 | K137: 0.4 | L137: 1.4 | M137: 63.4 | N137: 1.4 | O137: 2.4 | P137: 3.15 | Q137: 2.755555556 | R137: 0.9222222222 | S137: 0.4363888889 | T137: 5266.8 | U137: 16125.51111 | V137: 5396.844444 | W137: 4377.853333 | X137: 60.4 | Y137: 61.4 | Z137: 61.4 | AA137: 62.4 | AB137: 78.4 | AC137: 62.4 | AD137: 31600.8 | AE137: 67381.6 | AF137: 22551.1 | AG137: 10671.0175 | AH137: 26334 | AI137: 51256.08889 | AJ137: 17154.25556 | AK137: 6293.164167 | AL137: 16 | AM137: 210672
A138: 2020-01-03T09:15:00 | B138: 78.5 | C138: 77 | D138: 11.25 | E138: 78 | F138: 9.62 | G138: 77 | H138: 3.24 | I138: 76 | J138: 1.344 | K138: 1.5 | L138: 0.5 | M138: 63.5 | N138: 1.5 | O138: 2.5 | P138: 3.125 | Q138: 2.672222222 | R138: 0.9 | S138: 0.3733333333 | T138: 19593.75 | U138: 5584.944444 | V138: 5643 | W138: 3901.333333 | X138: 61.5 | Y138: 60.5 | Z138: 61.5 | AA138: 62.5 | AB138: 78.5 | AC138: 62.5 | AD138: 32656.25 | AE138: 65343.85 | AF138: 22007.7 | AG138: 9129.12 | AH138: 13062.5 | AI138: 59758.90556 | AJ138: 16364.7 | AK138: 5227.786667 | AL138: 16 | AM138: 209000
A139: 2020-01-03T09:30:00 | B139: 78.4 | C139: 78 | D139: 11.33 | E139: 77 | F139: 9.32 | G139: 77 | H139: 3.21 | I139: 76 | J139: 1.313 | K139: 0.4 | L139: 1.4 | M139: 63.4 | N139: 1.4 | O139: 2.4 | P139: 3.147222222 | Q139: 2.588888889 | R139: 0.8916666667 | S139: 0.3647222222 | T139: 5262.155556 | U139: 15150.17778 | V139: 5218.033333 | W139: 3658.893333 | X139: 60.4 | Y139: 61.4 | Z139: 61.4 | AA139: 62.4 | AB139: 78.4 | AC139: 62.4 | AD139: 31572.93333 | AE139: 63306.1 | AF139: 21803.925 | AG139: 8918.5525 | AH139: 26310.77778 | AI139: 48155.92222 | AJ139: 16585.89167 | AK139: 5259.659167 | AL139: 16 | AM139: 210486.2222
A140: 2020-01-03T09:45:00 | B140: 78.6 | C140: 78 | D140: 10.92 | E140: 78 | F140: 9.04 | G140: 77 | H140: 3.13 | I140: 76 | J140: 1.569 | K140: 0.6 | L140: 0.6 | M140: 63.6 | N140: 1.6 | O140: 2.6 | P140: 3.033333333 | Q140: 2.511111111 | R140: 0.8694444444 | S140: 0.4358333333 | T140: 7607.6 | U140: 6297.866667 | V140: 5814.844444 | W140: 4736.636667 | X140: 60.6 | Y140: 60.6 | Z140: 61.6 | AA140: 62.6 | AB140: 78.6 | AC140: 62.6 | AD140: 32966.26667 | AE140: 61404.2 | AF140: 21260.525 | AG140: 10657.4325 | AH140: 25358.66667 | AI140: 55106.33333 | AJ140: 15445.68056 | AK140: 5920.795833 | AL140: 16 | AM140: 202869.3333
A141: 2020-01-03T10:00:00 | B141: 78.7 | C141: 78 | D141: 11.2 | E141: 78 | F141: 9.31 | G141: 77 | H141: 3.05 | I141: 76 | J141: 1.281 | K141: 0.7 | L141: 0.7 | M141: 63.7 | N141: 1.7 | O141: 2.7 | P141: 3.111111111 | Q141: 2.586111111 | R141: 0.8472222222 | S141: 0.3558333333 | T141: 9103.111111 | U141: 7566.961111 | V141: 6020.361111 | W141: 4015.935 | X141: 60.7 | Y141: 60.7 | Z141: 61.7 | AA141: 62.7 | AB141: 78.7 | AC141: 62.7 | AD141: 35112 | AE141: 63238.175 | AF141: 20717.125 | AG141: 8701.1925 | AH141: 26008.88889 | AI141: 55671.21389 | AJ141: 14696.76389 | AK141: 4685.2575 | AL141: 16 | AM141: 208071.1111
A142: 2020-01-03T10:15:00 | B142: 79.3 | C142: 78 | D142: 11.54 | E142: 78 | F142: 9.15 | G142: 77 | H142: 3.14 | I142: 76 | J142: 0.657 | K142: 1.3 | L142: 1.3 | M142: 64.3 | N142: 2.3 | O142: 3.3 | P142: 3.205555556 | Q142: 2.541666667 | R142: 0.8722222222 | S142: 0.1825 | T142: 17418.98889 | U142: 13811.41667 | V142: 8385.544444 | W142: 2517.405 | X142: 61.3 | Y142: 61.3 | Z142: 62.3 | AA142: 63.3 | AB142: 79.3 | AC142: 63.3 | AD142: 44217.43333 | AE142: 62151.375 | AF142: 21328.45 | AG142: 4462.6725 | AH142: 26798.44444 | AI142: 48339.95833 | AJ142: 12942.90556 | AK142: 1945.2675 | AL142: 16 | AM142: 214387.5556
A143: 2020-01-03T10:30:00 | B143: 78.5 | C143: 78 | D143: 11.64 | E143: 78 | F143: 9.38 | G143: 77 | H143: 3.03 | I143: 76 | J143: 1.375 | K143: 0.5 | L143: 0.5 | M143: 63.5 | N143: 1.5 | O143: 2.5 | P143: 3.233333333 | Q143: 2.605555556 | R143: 0.8416666667 | S143: 0.3819444444 | T143: 6757.666667 | U143: 5445.611111 | V143: 5277.25 | W143: 3991.319444 | X143: 60.5 | Y143: 60.5 | Z143: 61.5 | AA143: 62.5 | AB143: 78.5 | AC143: 62.5 | AD143: 33788.33333 | AE143: 63713.65 | AF143: 20581.275 | AG143: 9339.6875 | AH143: 27030.66667 | AI143: 58268.03889 | AJ143: 15304.025 | AK143: 5348.368056 | AL143: 16 | AM143: 216245.3333
A144: 2020-01-03T10:45:00 | B144: 78.4 | C144: 78 | D144: 11.89 | E144: 78 | F144: 9.26 | G144: 77 | H144: 3.06 | I144: 76 | J144: 1.609 | K144: 0.4 | L144: 0.4 | M144: 63.4 | N144: 1.4 | O144: 2.4 | P144: 3.302777778 | Q144: 2.572222222 | R144: 0.85 | S144: 0.4469444444 | T144: 5522.244444 | U144: 4300.755556 | V144: 4974.2 | W144: 4483.746667 | X144: 60.4 | Y144: 60.4 | Z144: 61.4 | AA144: 62.4 | AB144: 78.4 | AC144: 62.4 | AD144: 33133.46667 | AE144: 62898.55 | AF144: 20785.05 | AG144: 10929.1325 | AH144: 27611.22222 | AI144: 58597.79444 | AJ144: 15810.85 | AK144: 6445.385833 | AL144: 16 | AM144: 220889.7778
A145: 2020-01-03T11:00:00 | B145: 78.2 | C145: 78 | D145: 11.98 | E145: 78 | F145: 9.6 | G145: 77 | H145: 3.03 | I145: 76 | J145: 1.179 | K145: 0.2 | L145: 0.2 | M145: 63.2 | N145: 1.2 | O145: 2.2 | P145: 3.327777778 | Q145: 2.666666667 | R145: 0.8416666667 | S145: 0.3275 | T145: 2782.022222 | U145: 2229.333333 | V145: 4221.8 | W145: 3011.69 | X145: 60.2 | Y145: 60.2 | Z145: 61.2 | AA145: 62.2 | AB145: 78.2 | AC145: 62.2 | AD145: 30602.24444 | AE145: 65208 | AF145: 20581.275 | AG145: 8008.3575 | AH145: 27820.22222 | AI145: 62978.66667 | AJ145: 16359.475 | AK145: 4996.6675 | AL145: 16 | AM145: 222561.7778
A146: 2020-01-03T11:15:00 | B146: 78.5 | C146: 78 | D146: 12.25 | E146: 78 | F146: 10.13 | G146: 78 | H146: 3.01 | I146: 76 | J146: 1.27 | K146: 0.5 | L146: 0.5 | M146: 63.5 | N146: 0.5 | O146: 2.5 | P146: 3.402777778 | Q146: 2.813888889 | R146: 0.8361111111 | S146: 0.3527777778 | T146: 7111.805556 | U146: 5881.027778 | V146: 1747.472222 | W146: 3686.527778 | X146: 60.5 | Y146: 60.5 | Z146: 60.5 | AA146: 62.5 | AB146: 78.5 | AC146: 62.5 | AD146: 35559.02778 | AE146: 68808.025 | AF146: 20445.425 | AG146: 8626.475 | AH146: 28447.22222 | AI146: 62926.99722 | AJ146: 18697.95278 | AK146: 4939.947222 | AL146: 16 | AM146: 227577.7778
A147: 2020-01-03T11:30:00 | B147: 78.7 | C147: 78 | D147: 12.41 | E147: 78 | F147: 10.44 | G147: 77 | H147: 2.9 | I147: 77 | J147: 1.358 | K147: 0.7 | L147: 0.7 | M147: 63.7 | N147: 1.7 | O147: 1.7 | P147: 3.447222222 | Q147: 2.9 | R147: 0.8055555556 | S147: 0.3772222222 | T147: 10086.57222 | U147: 8485.4 | V147: 5724.277778 | W147: 2680.541111 | X147: 60.7 | Y147: 60.7 | Z147: 61.7 | AA147: 61.7 | AB147: 78.7 | AC147: 61.7 | AD147: 24495.96111 | AE147: 70913.7 | AF147: 19698.25 | AG147: 9224.215 | AH147: 14409.38889 | AI147: 62428.3 | AJ147: 13973.97222 | AK147: 6543.673889 | AL147: 17 | AM147: 244959.6111
A148: 2020-01-03T11:45:00 | B148: 78.5 | C148: 78 | D148: 12.08 | E148: 78 | F148: 10.51 | G148: 77 | H148: 2.97 | I148: 77 | J148: 1.354 | K148: 0.5 | L148: 0.5 | M148: 63.5 | N148: 1.5 | O148: 1.5 | P148: 3.355555556 | Q148: 2.919444444 | R148: 0.825 | S148: 0.3761111111 | T148: 7013.111111 | U148: 6101.638889 | V148: 5172.75 | W148: 2358.216667 | X148: 60.5 | Y148: 60.5 | Z148: 61.5 | AA148: 61.5 | AB148: 78.5 | AC148: 61.5 | AD148: 21039.33333 | AE148: 71389.175 | AF148: 20173.725 | AG148: 9197.045 | AH148: 14026.22222 | AI148: 65287.53611 | AJ148: 15000.975 | AK148: 6838.828333 | AL148: 17 | AM148: 238445.7778
A149: 2020-01-03T12:00:00 | B149: 78.7 | C149: 78 | D149: 11.86 | E149: 78 | F149: 10.85 | G149: 77 | H149: 3.03 | I149: 76 | J149: 1.306 | K149: 0.7 | L149: 0.7 | M149: 63.7 | N149: 1.7 | O149: 2.7 | P149: 3.294444444 | Q149: 3.013888889 | R149: 0.8416666667 | S149: 0.3627777778 | T149: 9639.544444 | U149: 8818.638889 | V149: 5980.883333 | W149: 4094.31 | X149: 60.7 | Y149: 60.7 | Z149: 61.7 | AA149: 62.7 | AB149: 78.7 | AC149: 62.7 | AD149: 37181.1 | AE149: 73698.625 | AF149: 20581.275 | AG149: 8871.005 | AH149: 27541.55556 | AI149: 64879.98611 | AJ149: 14600.39167 | AK149: 4776.695 | AL149: 16 | AM149: 220332.4444
A150: 2020-01-03T12:15:00 | B150: 78.8 | C150: 78 | D150: 12.3 | E150: 78 | F150: 10.79 | G150: 77 | H150: 2.97 | I150: 76 | J150: 1.643 | K150: 0.8 | L150: 0.8 | M150: 63.8 | N150: 1.8 | O150: 2.8 | P150: 3.416666667 | Q150: 2.997222222 | R150: 0.825 | S150: 0.4563888889 | T150: 11425.33333 | U150: 10022.71111 | V150: 6207.3 | W150: 5341.575556 | X150: 60.8 | Y150: 60.8 | Z150: 61.8 | AA150: 62.8 | AB150: 78.8 | AC150: 62.8 | AD150: 39988.66667 | AE150: 73291.075 | AF150: 20173.725 | AG150: 11160.0775 | AH150: 28563.33333 | AI150: 63268.36389 | AJ150: 13966.425 | AK150: 5818.501944 | AL150: 16 | AM150: 228506.6667
A151: 2020-01-03T12:30:00 | B151: 78.6 | C151: 78 | D151: 12.38 | E151: 78 | F151: 10.54 | G151: 77 | H151: 2.97 | I151: 77 | J151: 1.594 | K151: 0.6 | L151: 0.6 | M151: 63.6 | N151: 1.6 | O151: 1.6 | P151: 3.438888889 | Q151: 2.927777778 | R151: 0.825 | S151: 0.4427777778 | T151: 8624.733333 | U151: 7342.866667 | V151: 5517.6 | W151: 2961.297778 | X151: 60.6 | Y151: 60.6 | Z151: 61.6 | AA151: 61.6 | AB151: 78.6 | AC151: 61.6 | AD151: 22999.28889 | AE151: 71592.95 | AF151: 20173.725 | AG151: 10827.245 | AH151: 14374.55556 | AI151: 64250.08333 | AJ151: 14656.125 | AK151: 7865.947222 | AL151: 17 | AM151: 244367.4444
A152: 2020-01-03T12:45:00 | B152: 78.9 | C152: 78 | D152: 12.56 | E152: 78 | F152: 10.63 | G152: 77 | H152: 2.97 | I152: 77 | J152: 1.402 | K152: 0.9 | L152: 0.9 | M152: 63.9 | N152: 1.9 | O152: 1.9 | P152: 3.488888889 | Q152: 2.952777778 | R152: 0.825 | S152: 0.3894444444 | T152: 13125.2 | U152: 11108.35 | V152: 6552.15 | W152: 3092.967778 | X152: 60.9 | Y152: 60.9 | Z152: 61.9 | AA152: 61.9 | AB152: 78.9 | AC152: 61.9 | AD152: 27708.75556 | AE152: 72204.275 | AF152: 20173.725 | AG152: 9523.085 | AH152: 14583.55556 | AI152: 61095.925 | AJ152: 13621.575 | AK152: 6430.117222 | AL152: 17 | AM152: 247920.4444
A153: 2020-01-03T13:00:00 | B153: 78.7 | C153: 78 | D153: 12.44 | E153: 78 | F153: 10.03 | G153: 77 | H153: 2.92 | I153: 77 | J153: 1.249 | K153: 0.7 | L153: 0.7 | M153: 63.7 | N153: 1.7 | O153: 1.7 | P153: 3.455555556 | Q153: 2.786111111 | R153: 0.8111111111 | S153: 0.3469444444 | T153: 10110.95556 | U153: 8152.161111 | V153: 5763.755556 | W153: 2465.387222 | X153: 60.7 | Y153: 60.7 | Z153: 61.7 | AA153: 61.7 | AB153: 78.7 | AC153: 61.7 | AD153: 24555.17778 | AE153: 68128.775 | AF153: 19834.1 | AG153: 8483.8325 | AH153: 14444.22222 | AI153: 59976.61389 | AJ153: 14070.34444 | AK153: 6018.445278 | AL153: 17 | AM153: 245551.7778
A154: 2020-01-03T13:15:00 | B154: 78.6 | C154: 78 | D154: 12.49 | E154: 78 | F154: 10.55 | G154: 77 | H154: 2.92 | I154: 76 | J154: 1.362 | K154: 0.6 | L154: 0.6 | M154: 63.6 | N154: 1.6 | O154: 2.6 | P154: 3.469444444 | Q154: 2.930555556 | R154: 0.8111111111 | S154: 0.3783333333 | T154: 8701.366667 | U154: 7349.833333 | V154: 5424.711111 | W154: 4111.726667 | X154: 60.6 | Y154: 60.6 | Z154: 61.6 | AA154: 62.6 | AB154: 78.6 | AC154: 62.6 | AD154: 37705.92222 | AE154: 71660.875 | AF154: 19834.1 | AG154: 9251.385 | AH154: 29004.55556 | AI154: 64311.04167 | AJ154: 14409.38889 | AK154: 5139.658333 | AL154: 16 | AM154: 232036.4444
A155: 2020-01-03T13:30:00 | B155: 78.5 | C155: 78 | D155: 12.37 | E155: 78 | F155: 10.66 | G155: 77 | H155: 2.91 | I155: 77 | J155: 1.343 | K155: 0.5 | L155: 0.5 | M155: 63.5 | N155: 1.5 | O155: 1.5 | P155: 3.436111111 | Q155: 2.961111111 | R155: 0.8083333333 | S155: 0.3730555556 | T155: 7181.472222 | U155: 6188.722222 | V155: 5068.25 | W155: 2339.058333 | X155: 60.5 | Y155: 60.5 | Z155: 61.5 | AA155: 61.5 | AB155: 78.5 | AC155: 61.5 | AD155: 21544.41667 | AE155: 72408.05 | AF155: 19766.175 | AG155: 9122.3275 | AH155: 14362.94444 | AI155: 66219.32778 | AJ155: 14697.925 | AK155: 6783.269167 | AL155: 17 | AM155: 244170.0556
A156: 2020-01-03T13:45:00 | B156: 78.4 | C156: 78 | D156: 12.99 | E156: 78 | F156: 10.73 | G156: 77 | H156: 2.9 | I156: 77 | J156: 1.005 | K156: 0.4 | L156: 0.4 | M156: 63.4 | N156: 1.4 | O156: 1.4 | P156: 3.608333333 | Q156: 2.980555556 | R156: 0.8055555556 | S156: 0.2791666667 | T156: 6033.133333 | U156: 4983.488889 | V156: 4714.111111 | W156: 1633.683333 | X156: 60.4 | Y156: 60.4 | Z156: 61.4 | AA156: 61.4 | AB156: 78.4 | AC156: 61.4 | AD156: 21115.96667 | AE156: 72883.525 | AF156: 19698.25 | AG156: 6826.4625 | AH156: 15082.83333 | AI156: 67900.03611 | AJ156: 14984.13889 | AK156: 5192.779167 | AL156: 17 | AM156: 256408.1667
A157: 2020-01-03T14:00:00 | B157: 78.5 | C157: 78 | D157: 12.78 | E157: 78 | F157: 11.08 | G157: 77 | H157: 2.86 | I157: 77 | J157: 1.581 | K157: 0.5 | L157: 0.5 | M157: 63.5 | N157: 1.5 | O157: 1.5 | P157: 3.55 | Q157: 3.077777778 | R157: 0.7944444444 | S157: 0.4391666667 | T157: 7419.5 | U157: 6432.555556 | V157: 4981.166667 | W157: 2753.575 | X157: 60.5 | Y157: 60.5 | Z157: 61.5 | AA157: 61.5 | AB157: 78.5 | AC157: 61.5 | AD157: 22258.5 | AE157: 75260.9 | AF157: 19426.55 | AG157: 10738.9425 | AH157: 14839 | AI157: 68828.34444 | AJ157: 14445.38333 | AK157: 7985.3675 | AL157: 17 | AM157: 252263
A158: 2020-01-03T14:15:00 | B158: 78.6 | C158: 78 | D158: 12.67 | E158: 78 | F158: 10.89 | G158: 77 | H158: 2.96 | I158: 77 | J158: 1.191 | K158: 0.6 | L158: 0.6 | M158: 63.6 | N158: 1.6 | O158: 1.6 | P158: 3.519444444 | Q158: 3.025 | R158: 0.8222222222 | S158: 0.3308333333 | T158: 8826.766667 | U158: 7586.7 | V158: 5499.022222 | W158: 2212.613333 | X158: 60.6 | Y158: 60.6 | Z158: 61.6 | AA158: 61.6 | AB158: 78.6 | AC158: 61.6 | AD158: 23538.04444 | AE158: 73970.325 | AF158: 20105.8 | AG158: 8089.8675 | AH158: 14711.27778 | AI158: 66383.625 | AJ158: 14606.77778 | AK158: 5877.254167 | AL158: 17 | AM158: 250091.7222
A159: 2020-01-03T14:30:00 | B159: 78.3 | C159: 78 | D159: 12.68 | E159: 78 | F159: 10.78 | G159: 77 | H159: 2.91 | I159: 77 | J159: 1.391 | K159: 0.3 | L159: 0.3 | M159: 63.3 | N159: 1.3 | O159: 1.3 | P159: 3.522222222 | Q159: 2.994444444 | R159: 0.8083333333 | S159: 0.3863888889 | T159: 4416.866667 | U159: 3755.033333 | V159: 4392.483333 | W159: 2099.637222 | X159: 60.3 | Y159: 60.3 | Z159: 61.3 | AA159: 61.3 | AB159: 78.3 | AC159: 61.3 | AD159: 19139.75556 | AE159: 73223.15 | AF159: 19766.175 | AG159: 9448.3675 | AH159: 14722.88889 | AI159: 69468.11667 | AJ159: 15373.69167 | AK159: 7348.730278 | AL159: 17 | AM159: 250289.1111
A160: 2020-01-03T14:45:00 | B160: 78.3 | C160: 78 | D160: 12.78 | E160: 78 | F160: 11.18 | G160: 77 | H160: 2.93 | I160: 77 | J160: 1.347 | K160: 0.3 | L160: 0.3 | M160: 63.3 | N160: 1.3 | O160: 1.3 | P160: 3.55 | Q160: 3.105555556 | R160: 0.8138888889 | S160: 0.3741666667 | T160: 4451.7 | U160: 3894.366667 | V160: 4422.672222 | W160: 2033.221667 | X160: 60.3 | Y160: 60.3 | Z160: 61.3 | AA160: 61.3 | AB160: 78.3 | AC160: 61.3 | AD160: 19290.7 | AE160: 75940.15 | AF160: 19902.025 | AG160: 9149.4975 | AH160: 14839 | AI160: 72045.78333 | AJ160: 15479.35278 | AK160: 7116.275833 | AL160: 17 | AM160: 252263
A161: 2020-01-03T15:00:00 | B161: 78.5 | C161: 78 | D161: 12.5 | E161: 77 | F161: 11.94 | G161: 77 | H161: 2.94 | I161: 76 | J161: 1.134 | K161: 0.5 | L161: 1.5 | M161: 63.5 | N161: 1.5 | O161: 2.5 | P161: 3.472222222 | Q161: 3.316666667 | R161: 0.8166666667 | S161: 0.315 | T161: 7256.944444 | U161: 20795.5 | V161: 5120.5 | W161: 3291.75 | X161: 60.5 | Y161: 61.5 | Z161: 61.5 | AA161: 62.5 | AB161: 78.5 | AC161: 62.5 | AD161: 36284.72222 | AE161: 81102.45 | AF161: 19969.95 | AG161: 7702.695 | AH161: 29027.77778 | AI161: 60306.95 | AJ161: 14849.45 | AK161: 4410.945 | AL161: 16 | AM161: 232222.2222
A162: 2020-01-03T15:15:00 | B162: 78.4 | C162: 78 | D162: 12.36 | E162: 78 | F162: 11 | G162: 77 | H162: 2.93 | I162: 76 | J162: 1.5 | K162: 0.4 | L162: 0.4 | M162: 63.4 | N162: 1.4 | O162: 2.4 | P162: 3.433333333 | Q162: 3.055555556 | R162: 0.8138888889 | S162: 0.4166666667 | T162: 5740.533333 | U162: 5108.888889 | V162: 4762.877778 | W162: 4180 | X162: 60.4 | Y162: 60.4 | Z162: 61.4 | AA162: 62.4 | AB162: 78.4 | AC162: 62.4 | AD162: 34443.2 | AE162: 74717.5 | AF162: 19902.025 | AG162: 10188.75 | AH162: 28702.66667 | AI162: 69608.61111 | AJ162: 15139.14722 | AK162: 6008.75 | AL162: 16 | AM162: 229621.3333
A163: 2020-01-03T15:30:00 | B163: 78.3 | C163: 78 | D163: 12.28 | E163: 78 | F163: 11.51 | G163: 77 | H163: 2.86 | I163: 76 | J163: 1.296 | K163: 0.3 | L163: 0.3 | M163: 63.3 | N163: 1.3 | O163: 2.3 | P163: 3.411111111 | Q163: 3.197222222 | R163: 0.7944444444 | S163: 0.36 | T163: 4277.533333 | U163: 4009.316667 | V163: 4317.011111 | W163: 3461.04 | X163: 60.3 | Y163: 60.3 | Z163: 61.3 | AA163: 62.3 | AB163: 78.3 | AC163: 62.3 | AD163: 32794.42222 | AE163: 78181.675 | AF163: 19426.55 | AG163: 8803.08 | AH163: 28516.88889 | AI163: 74172.35833 | AJ163: 15109.53889 | AK163: 5342.04 | AL163: 16 | AM163: 228135.1111
A164: 2020-01-03T15:45:00 | B164: 78.3 | C164: 77 | D164: 12.54 | E164: 78 | F164: 11.28 | G164: 77 | H164: 2.97 | I164: 76 | J164: 1.193 | K164: 1.3 | L164: 0.3 | M164: 63.3 | N164: 1.3 | O164: 2.3 | P164: 3.483333333 | Q164: 3.133333333 | R164: 0.825 | S164: 0.3313888889 | T164: 18928.43333 | U164: 3929.2 | V164: 4483.05 | W164: 3185.972778 | X164: 61.3 | Y164: 60.3 | Z164: 61.3 | AA164: 62.3 | AB164: 78.3 | AC164: 62.3 | AD164: 33488.76667 | AE164: 76619.4 | AF164: 20173.725 | AG164: 8103.4525 | AH164: 14560.33333 | AI164: 72690.2 | AJ164: 15690.675 | AK164: 4917.479722 | AL164: 16 | AM164: 232965.3333
A165: 2020-01-03T16:00:00 | B165: 78.5 | C165: 78 | D165: 12.15 | E165: 77 | F165: 11.55 | G165: 77 | H165: 2.27 | I165: 76 | J165: 1.435 | K165: 0.5 | L165: 1.5 | M165: 63.5 | N165: 1.5 | O165: 2.5 | P165: 3.375 | Q165: 3.208333333 | R165: 0.6305555556 | S165: 0.3986111111 | T165: 7053.75 | U165: 20116.25 | V165: 3953.583333 | W165: 4165.486111 | X165: 60.5 | Y165: 61.5 | Z165: 61.5 | AA165: 62.5 | AB165: 78.5 | AC165: 62.5 | AD165: 35268.75 | AE165: 78453.375 | AF165: 15418.975 | AG165: 9747.2375 | AH165: 28215 | AI165: 58337.125 | AJ165: 11465.39167 | AK165: 5581.751389 | AL165: 16 | AM165: 225720
A166: 2020-01-03T16:15:00 | B166: 78.4 | C166: 78 | D166: 12.76 | E166: 78 | F166: 11.36 | G166: 77 | H166: 2.37 | I166: 76 | J166: 1.037 | K166: 0.4 | L166: 0.4 | M166: 63.4 | N166: 1.4 | O166: 2.4 | P166: 3.544444444 | Q166: 3.155555556 | R166: 0.6583333333 | S166: 0.2880555556 | T166: 5926.311111 | U166: 5276.088889 | V166: 3852.566667 | W166: 2889.773333 | X166: 60.4 | Y166: 60.4 | Z166: 61.4 | AA166: 62.4 | AB166: 78.4 | AC166: 62.4 | AD166: 35557.86667 | AE166: 77162.8 | AF166: 16098.225 | AG166: 7043.8225 | AH166: 29631.55556 | AI166: 71886.71111 | AJ166: 12245.65833 | AK166: 4154.049167 | AL166: 16 | AM166: 237052.4444
A167: 2020-01-03T16:30:00 | B167: 78.5 | C167: 78 | D167: 12.8 | E167: 78 | F167: 11.21 | G167: 77 | H167: 2.42 | I167: 76 | J167: 1.111 | K167: 0.5 | L167: 0.5 | M167: 63.5 | N167: 1.5 | O167: 2.5 | P167: 3.555555556 | Q167: 3.113888889 | R167: 0.6722222222 | S167: 0.3086111111 | T167: 7431.111111 | U167: 6508.027778 | V167: 4214.833333 | W167: 3224.986111 | X167: 60.5 | Y167: 60.5 | Z167: 61.5 | AA167: 62.5 | AB167: 78.5 | AC167: 62.5 | AD167: 37155.55556 | AE167: 76143.925 | AF167: 16437.85 | AG167: 7546.4675 | AH167: 29724.44444 | AI167: 69635.89722 | AJ167: 12223.01667 | AK167: 4321.481389 | AL167: 16 | AM167: 237795.5556
A168: 2020-01-03T16:45:00 | B168: 78.2 | C168: 78 | D168: 12.5 | E168: 78 | F168: 11.12 | G168: 77 | H168: 2.46 | I168: 76 | J168: 1.57 | K168: 0.2 | L168: 0.2 | M168: 63.2 | N168: 1.2 | O168: 2.2 | P168: 3.472222222 | Q168: 3.088888889 | R168: 0.6833333333 | S168: 0.4361111111 | T168: 2902.777778 | U168: 2582.311111 | V168: 3427.6 | W168: 4010.477778 | X168: 60.2 | Y168: 60.2 | Z168: 61.2 | AA168: 62.2 | AB168: 78.2 | AC168: 62.2 | AD168: 31930.55556 | AE168: 75532.6 | AF168: 16709.55 | AG168: 10664.225 | AH168: 29027.77778 | AI168: 72950.28889 | AJ168: 13281.95 | AK168: 6653.747222 | AL168: 16 | AM168: 232222.2222
A169: 2020-01-03T17:00:00 | B169: 78.4 | C169: 78 | D169: 12.45 | E169: 78 | F169: 11.51 | G169: 77 | H169: 2.48 | I169: 76 | J169: 1.109 | K169: 0.4 | L169: 0.4 | M169: 63.4 | N169: 1.4 | O169: 2.4 | P169: 3.458333333 | Q169: 3.197222222 | R169: 0.6888888889 | S169: 0.3080555556 | T169: 5782.333333 | U169: 5345.755556 | V169: 4031.377778 | W169: 3090.413333 | X169: 60.4 | Y169: 60.4 | Z169: 61.4 | AA169: 62.4 | AB169: 78.4 | AC169: 62.4 | AD169: 34694 | AE169: 78181.675 | AF169: 16845.4 | AG169: 7532.8825 | AH169: 28911.66667 | AI169: 72835.91944 | AJ169: 12814.02222 | AK169: 4442.469167 | AL169: 16 | AM169: 231293.3333
A170: 2020-01-03T17:15:00 | B170: 78.2 | C170: 77 | D170: 12.46 | E170: 78 | F170: 11.77 | G170: 77 | H170: 2.5 | I170: 76 | J170: 1.353 | K170: 1.2 | L170: 0.2 | M170: 63.2 | N170: 1.2 | O170: 2.2 | P170: 3.461111111 | Q170: 3.269444444 | R170: 0.6944444444 | S170: 0.3758333333 | T170: 17360.93333 | U170: 2733.255556 | V170: 3483.333333 | W170: 3456.163333 | X170: 61.2 | Y170: 60.2 | Z170: 61.2 | AA170: 62.2 | AB170: 78.2 | AC170: 62.2 | AD170: 31828.37778 | AE170: 79947.725 | AF170: 16981.25 | AG170: 9190.2525 | AH170: 14467.44444 | AI170: 77214.46944 | AJ170: 13497.91667 | AK170: 5734.089167 | AL170: 16 | AM170: 231479.1111
A171: 2020-01-03T17:30:00 | B171: 78.3 | C171: 77 | D171: 12.42 | E171: 77 | F171: 11.39 | G171: 77 | H171: 2.53 | I171: 76 | J171: 1.565 | K171: 1.3 | L171: 1.3 | M171: 63.3 | N171: 1.3 | O171: 2.3 | P171: 3.45 | Q171: 3.163888889 | R171: 0.7027777778 | S171: 0.4347222222 | T171: 18747.3 | U171: 17192.57222 | V171: 3818.894444 | W171: 4179.419444 | X171: 61.3 | Y171: 61.3 | Z171: 61.3 | AA171: 62.3 | AB171: 78.3 | AC171: 62.3 | AD171: 33168.3 | AE171: 77366.575 | AF171: 17185.025 | AG171: 10630.2625 | AH171: 14421 | AI171: 60174.00278 | AJ171: 13366.13056 | AK171: 6450.843056 | AL171: 16 | AM171: 230736
A172: 2020-01-03T17:45:00 | B172: 78.6 | C172: 77 | D172: 12.39 | E172: 77 | F172: 12 | G172: 77 | H172: 2.53 | I172: 77 | J172: 1.162 | K172: 1.6 | L172: 1.6 | M172: 63.6 | N172: 1.6 | O172: 1.6 | P172: 3.441666667 | Q172: 3.333333333 | R172: 0.7027777778 | S172: 0.3227777778 | T172: 23017.86667 | U172: 22293.33333 | V172: 4700.177778 | W172: 2158.737778 | X172: 61.6 | Y172: 61.6 | Z172: 61.6 | AA172: 61.6 | AB172: 78.6 | AC172: 61.6 | AD172: 23017.86667 | AE172: 81510 | AF172: 17185.025 | AG172: 7892.885 | AH172: 0 | AI172: 59216.66667 | AJ172: 12484.84722 | AK172: 5734.147222 | AL172: 17 | AM172: 244564.8333
A173: 2020-01-03T18:00:00 | B173: 78.2 | C173: 77 | D173: 12.52 | E173: 77 | F173: 11.98 | G173: 77 | H173: 2.52 | I173: 76 | J173: 1.299 | K173: 1.2 | L173: 1.2 | M173: 63.2 | N173: 1.2 | O173: 2.2 | P173: 3.477777778 | Q173: 3.327777778 | R173: 0.7 | S173: 0.3608333333 | T173: 17444.53333 | U173: 16692.13333 | V173: 3511.2 | W173: 3318.223333 | X173: 61.2 | Y173: 61.2 | Z173: 61.2 | AA173: 62.2 | AB173: 78.2 | AC173: 62.2 | AD173: 31981.64444 | AE173: 81374.15 | AF173: 17117.1 | AG173: 8823.4575 | AH173: 14537.11111 | AI173: 64682.01667 | AJ173: 13605.9 | AK173: 5505.234167 | AL173: 16 | AM173: 232593.7778
A174: 2020-01-03T18:15:00 | B174: 78.3 | C174: 78 | D174: 12.41 | E174: 77 | F174: 11.83 | G174: 77 | H174: 2.49 | I174: 76 | J174: 1.584 | K174: 0.3 | L174: 1.3 | M174: 63.3 | N174: 1.3 | O174: 2.3 | P174: 3.447222222 | Q174: 3.286111111 | R174: 0.6916666667 | S174: 0.44 | T174: 4322.816667 | U174: 17856.72778 | V174: 3758.516667 | W174: 4230.16 | X174: 60.3 | Y174: 61.3 | Z174: 61.3 | AA174: 62.3 | AB174: 78.3 | AC174: 62.3 | AD174: 33141.59444 | AE174: 80355.275 | AF174: 16913.325 | AG174: 10759.32 | AH174: 28818.77778 | AI174: 62498.54722 | AJ174: 13154.80833 | AK174: 6529.16 | AL174: 16 | AM174: 230550.2222
A175: 2020-01-03T18:30:00 | B175: 78.3 | C175: 77 | D175: 12.48 | E175: 77 | F175: 11.84 | G175: 77 | H175: 2.52 | I175: 76 | J175: 1.16 | K175: 1.3 | L175: 1.3 | M175: 63.3 | N175: 1.3 | O175: 2.3 | P175: 3.466666667 | Q175: 3.288888889 | R175: 0.7 | S175: 0.3222222222 | T175: 18837.86667 | U175: 17871.82222 | V175: 3803.8 | W175: 3097.844444 | X175: 61.3 | Y175: 61.3 | Z175: 61.3 | AA175: 62.3 | AB175: 78.3 | AC175: 62.3 | AD175: 33328.53333 | AE175: 80423.2 | AF175: 17117.1 | AG175: 7879.3 | AH175: 14490.66667 | AI175: 62551.37778 | AJ175: 13313.3 | AK175: 4781.455556 | AL175: 16 | AM175: 231850.6667
A176: 2020-01-03T18:45:00 | B176: 78.2 | C176: 77 | D176: 12.39 | E176: 77 | F176: 11.83 | G176: 77 | H176: 2.47 | I176: 76 | J176: 1.158 | K176: 1.2 | L176: 1.2 | M176: 63.2 | N176: 1.2 | O176: 2.2 | P176: 3.441666667 | Q176: 3.286111111 | R176: 0.6861111111 | S176: 0.3216666667 | T176: 17263.4 | U176: 16483.13333 | V176: 3441.533333 | W176: 2958.046667 | X176: 61.2 | Y176: 61.2 | Z176: 61.2 | AA176: 62.2 | AB176: 78.2 | AC176: 62.2 | AD176: 31649.56667 | AE176: 80355.275 | AF176: 16777.475 | AG176: 7865.715 | AH176: 14386.16667 | AI176: 63872.14167 | AJ176: 13335.94167 | AK176: 4907.668333 | AL176: 16 | AM176: 230178.6667
A177: 2020-01-03T19:00:00 | B177: 78.1 | C177: 78 | D177: 12.05 | E177: 77 | F177: 11.9 | G177: 77 | H177: 2.52 | I177: 76 | J177: 1.539 | K177: 0.1 | L177: 1.1 | M177: 63.1 | N177: 1.1 | O177: 2.1 | P177: 3.347222222 | Q177: 3.305555556 | R177: 0.7 | S177: 0.4275 | T177: 1399.138889 | U177: 15198.94444 | V177: 3218.6 | W177: 3752.595 | X177: 60.1 | Y177: 61.1 | Z177: 61.1 | AA177: 62.1 | AB177: 78.1 | AC177: 62.1 | AD177: 29381.91667 | AE177: 80830.75 | AF177: 17117.1 | AG177: 10453.6575 | AH177: 27982.77778 | AI177: 65631.80556 | AJ177: 13898.5 | AK177: 6701.0625 | AL177: 16 | AM177: 223862.2222
A178: 2020-01-03T19:15:00 | B178: 78.4 | C178: 77 | D178: 11.57 | E178: 78 | F178: 11.75 | G178: 77 | H178: 2.63 | I178: 76 | J178: 1.513 | K178: 1.4 | L178: 0.4 | M178: 63.4 | N178: 1.4 | O178: 2.4 | P178: 3.213888889 | Q178: 3.263888889 | R178: 0.7305555556 | S178: 0.4202777778 | T178: 18807.67778 | U178: 5457.222222 | V178: 4275.211111 | W178: 4216.226667 | X178: 61.4 | Y178: 60.4 | Z178: 61.4 | AA178: 62.4 | AB178: 78.4 | AC178: 62.4 | AD178: 32241.73333 | AE178: 79811.875 | AF178: 17864.275 | AG178: 10277.0525 | AH178: 13434.05556 | AI178: 74354.65278 | AJ178: 13589.06389 | AK178: 6060.825833 | AL178: 16 | AM178: 214944.8889
A179: 2020-01-03T19:30:00 | B179: 78.1 | C179: 78 | D179: 11.62 | E179: 77 | F179: 11.79 | G179: 77 | H179: 2.62 | I179: 76 | J179: 1.189 | K179: 0.1 | L179: 1.1 | M179: 63.1 | N179: 1.1 | O179: 2.1 | P179: 3.227777778 | Q179: 3.275 | R179: 0.7277777778 | S179: 0.3302777778 | T179: 1349.211111 | U179: 15058.45 | V179: 3346.322222 | W179: 2899.178333 | X179: 60.1 | Y179: 61.1 | Z179: 61.1 | AA179: 62.1 | AB179: 78.1 | AC179: 62.1 | AD179: 28333.43333 | AE179: 80083.575 | AF179: 17796.35 | AG179: 8076.2825 | AH179: 26984.22222 | AI179: 65025.125 | AJ179: 14450.02778 | AK179: 5177.104167 | AL179: 16 | AM179: 215873.7778
A180: 2020-01-03T19:45:00 | B180: 78.2 | C180: 77 | D180: 12.13 | E180: 78 | F180: 11.61 | G180: 77 | H180: 2.61 | I180: 76 | J180: 1.171 | K180: 1.2 | L180: 0.2 | M180: 63.2 | N180: 1.2 | O180: 2.2 | P180: 3.369444444 | Q180: 3.225 | R180: 0.725 | S180: 0.3252777778 | T180: 16901.13333 | U180: 2696.1 | V180: 3636.6 | W180: 2991.254444 | X180: 61.2 | Y180: 60.2 | Z180: 61.2 | AA180: 62.2 | AB180: 78.2 | AC180: 62.2 | AD180: 30985.41111 | AE180: 78860.925 | AF180: 17728.425 | AG180: 7954.0175 | AH180: 14084.27778 | AI180: 76164.825 | AJ180: 14091.825 | AK180: 4962.763056 | AL180: 16 | AM180: 225348.4444
A181: 2020-01-03T20:00:00 | B181: 78.3 | C181: 78 | D181: 12.7 | E181: 77 | F181: 11.87 | G181: 76 | H181: 2.51 | I181: 76 | J181: 1.157 | K181: 0.3 | L181: 1.3 | M181: 63.3 | N181: 2.3 | O181: 2.3 | P181: 3.527777778 | Q181: 3.297222222 | R181: 0.6972222222 | S181: 0.3213888889 | T181: 4423.833333 | U181: 17917.10556 | V181: 6703.094444 | W181: 3089.832778 | X181: 60.3 | Y181: 61.3 | Z181: 62.3 | AA181: 62.3 | AB181: 78.3 | AC181: 62.3 | AD181: 33916.05556 | AE181: 80626.975 | AF181: 17049.175 | AG181: 7858.9225 | AH181: 29492.22222 | AI181: 62709.86944 | AJ181: 10346.08056 | AK181: 4769.089722 | AL181: 16 | AM181: 235937.7778
A182: 2020-01-03T20:15:00 | B182: 78.1 | C182: 77 | D182: 12.76 | E182: 78 | F182: 11.83 | G182: 77 | H182: 2.58 | I182: 75 | J182: 0.354 | K182: 1.1 | L182: 0.1 | M182: 63.1 | N182: 1.1 | O182: 3.1 | P182: 3.544444444 | Q182: 3.286111111 | R182: 0.7166666667 | S182: 0.09833333333 | T182: 16297.35556 | U182: 1373.594444 | V182: 3295.233333 | W182: 1274.203333 | X182: 61.1 | Y182: 60.1 | Z182: 61.1 | AA182: 63.1 | AB182: 78.1 | AC182: 63.1 | AD182: 45928.91111 | AE182: 80355.275 | AF182: 17524.65 | AG182: 2404.545 | AH182: 29631.55556 | AI182: 78981.68056 | AJ182: 14229.41667 | AK182: 1130.341667 | AL182: 15 | AM182: 222236.6667
A183: 2020-01-04T05:30:00 | B183: 75.5 | C183: 75 | D183: 10.07 | E183: 75 | F183: 8.99 | G183: 74 | H183: 1.58 | I183: 71.75 | J183: 0.285 | K183: 0.5 | L183: 0.5 | M183: 59.5 | N183: 1.5 | O183: 3.75 | P183: 2.797222222 | Q183: 2.497222222 | R183: 0.4388888889 | S183: 0.07916666667 | T183: 5846.194444 | U183: 5219.194444 | V183: 2751.833333 | W183: 1240.9375 | X183: 60.5 | Y183: 60.5 | Z183: 61.5 | AA183: 63.75 | AB183: 75.5 | AC183: 63.75 | AD183: 43846.45833 | AE183: 61064.575 | AF183: 10732.15 | AG183: 1935.8625 | AH183: 38000.26389 | AI183: 55845.38056 | AJ183: 7980.316667 | AK183: 694.925 | AL183: 11.75 | AM183: 137385.5694
A184: 2020-01-04T05:45:00 | B184: 75.2 | C184: 74 | D184: 10.16 | E184: 74 | F184: 8.78 | G184: 74 | H184: 1.53 | I184: 69 | J184: 0.267 | K184: 1.2 | L184: 1.2 | M184: 59.2 | N184: 1.2 | O184: 6.2 | P184: 2.822222222 | Q184: 2.438888889 | R184: 0.425 | S184: 0.07416666667 | T184: 14156.26667 | U184: 12233.46667 | V184: 2131.8 | W184: 1922.103333 | X184: 61.2 | Y184: 61.2 | Z184: 61.2 | AA184: 66.2 | AB184: 75.2 | AC184: 66.2 | AD184: 73140.71111 | AE184: 59638.15 | AF184: 10392.525 | AG184: 1813.5975 | AH184: 58984.44444 | AI184: 47404.68333 | AJ184: 8260.725 | AK184: -108.5058333 | AL184: 9 | AM184: 106172
A185: 2020-01-04T06:00:00 | B185: 75.1 | C185: 74 | D185: 10.22 | E185: 74 | F185: 8.91 | G185: 74 | H185: 1.57 | I185: 70 | J185: 0.253 | K185: 1.1 | L185: 1.1 | M185: 59.1 | N185: 1.1 | O185: 5.1 | P185: 2.838888889 | Q185: 2.475 | R185: 0.4361111111 | S185: 0.07027777778 | T185: 13053.21111 | U185: 11380.05 | V185: 2005.238889 | W185: 1498.181667 | X185: 61.1 | Y185: 61.1 | Z185: 61.1 | AA185: 65.1 | AB185: 75.1 | AC185: 65.1 | AD185: 60519.43333 | AE185: 60521.175 | AF185: 10664.225 | AG185: 1718.5025 | AH185: 47466.22222 | AI185: 49141.125 | AJ185: 8658.986111 | AK185: 220.3208333 | AL185: 10 | AM185: 118665.5556
A186: 2020-01-04T18:45:00 | B186: 73.1 | C186: 72 | D186: 11.87 | E186: 72 | F186: 10.27 | G186: 71 | H186: 1.9 | I186: 69 | J186: 0.29 | K186: 1.1 | L186: 1.1 | M186: 57.1 | N186: 2.1 | O186: 4.1 | P186: 3.297222222 | Q186: 2.852777778 | R186: 0.5277777778 | S186: 0.08055555556 | T186: 15160.62778 | U186: 13117.07222 | V186: 4632.833333 | W186: 1380.561111 | X186: 61.1 | Y186: 61.1 | Z186: 62.1 | AA186: 64.1 | AB186: 73.1 | AC186: 64.1 | AD186: 56507.79444 | AE186: 69758.975 | AF186: 12905.75 | AG186: 1969.825 | AH186: 41347.16667 | AI186: 56641.90278 | AJ186: 8272.916667 | AK186: 589.2638889 | AL186: 9 | AM186: 124041.5
A187: 2020-01-04T19:00:00 | B187: 73.4 | C187: 72 | D187: 11.9 | E187: 72 | F187: 10.6 | G187: 71 | H187: 1.88 | I187: 69 | J187: 0.274 | K187: 1.4 | L187: 1.4 | M187: 57.4 | N187: 2.4 | O187: 4.4 | P187: 3.305555556 | Q187: 2.944444444 | R187: 0.5222222222 | S187: 0.07611111111 | T187: 19344.11111 | U187: 17230.88889 | V187: 5238.933333 | W187: 1399.835556 | X187: 61.4 | Y187: 61.4 | Z187: 62.4 | AA187: 64.4 | AB187: 73.4 | AC187: 64.4 | AD187: 60795.77778 | AE187: 72000.5 | AF187: 12769.9 | AG187: 1861.145 | AH187: 41451.66667 | AI187: 54769.61111 | AJ187: 7530.966667 | AK187: 461.3094444 | AL187: 9 | AM187: 124355
A188: 2020-01-04T22:30:00 | B188: 74 | C188: 73 | D188: 11.28 | E188: 72 | F188: 9.92 | G188: 72 | H188: 1.96 | I188: 71 | J188: 1.182 | K188: 1 | L188: 2 | M188: 58 | N188: 2 | O188: 3 | P188: 3.133333333 | Q188: 2.755555556 | R188: 0.5444444444 | S188: 0.3283333333 | T188: 13097.33333 | U188: 23036.44444 | V188: 4551.555556 | W188: 4117.3 | X188: 61 | Y188: 62 | Z188: 62 | AA188: 63 | AB188: 74 | AC188: 63 | AD188: 39292 | AE188: 67381.6 | AF188: 13313.3 | AG188: 8028.735 | AH188: 26194.66667 | AI188: 44345.15556 | AJ188: 8761.744444 | AK188: 3911.435 | AL188: 11 | AM188: 144070.6667
A189: 2020-01-04T22:45:00 | B189: 73.7 | C189: 73 | D189: 11.16 | E189: 73 | F189: 10.24 | G189: 72 | H189: 1.92 | I189: 71 | J189: 0.573 | K189: 0.7 | L189: 0.7 | M189: 57.7 | N189: 1.7 | O189: 2.7 | P189: 3.1 | Q189: 2.844444444 | R189: 0.5333333333 | S189: 0.1591666667 | T189: 9070.6 | U189: 8322.844444 | V189: 3789.866667 | W189: 1796.355 | X189: 60.7 | Y189: 60.7 | Z189: 61.7 | AA189: 62.7 | AB189: 73.7 | AC189: 62.7 | AD189: 34986.6 | AE189: 69555.2 | AF189: 13041.6 | AG189: 3892.1025 | AH189: 25916 | AI189: 61232.35556 | AJ189: 9251.733333 | AK189: 2095.7475 | AL189: 11 | AM189: 142538
A190: 2020-01-04T23:00:00 | B190: 73.4 | C190: 73 | D190: 11.43 | E190: 72 | F190: 10.48 | G190: 72 | H190: 1.98 | I190: 71 | J190: 0.522 | K190: 0.4 | L190: 1.4 | M190: 57.4 | N190: 1.4 | O190: 2.4 | P190: 3.175 | Q190: 2.911111111 | R190: 0.55 | S190: 0.145 | T190: 5308.6 | U190: 17035.82222 | V190: 3218.6 | W190: 1454.64 | X190: 60.4 | Y190: 61.4 | Z190: 61.4 | AA190: 62.4 | AB190: 73.4 | AC190: 62.4 | AD190: 31851.6 | AE190: 71185.4 | AF190: 13449.15 | AG190: 3545.685 | AH190: 26543 | AI190: 54149.57778 | AJ190: 10230.55 | AK190: 2091.045 | AL190: 11 | AM190: 145986.5
A191: 2020-01-04T23:15:00 | B191: 73.9 | C191: 73 | D191: 11.72 | E191: 73 | F191: 10.26 | G191: 72 | H191: 1.99 | I191: 71 | J191: 0.719 | K191: 0.9 | L191: 0.9 | M191: 57.9 | N191: 1.9 | O191: 2.9 | P191: 3.255555556 | Q191: 2.85 | R191: 0.5527777778 | S191: 0.1997222222 | T191: 12247.4 | U191: 10721.7 | V191: 4390.161111 | W191: 2421.032778 | X191: 60.9 | Y191: 60.9 | Z191: 61.9 | AA191: 62.9 | AB191: 73.9 | AC191: 62.9 | AD191: 39463.84444 | AE191: 69691.05 | AF191: 13517.075 | AG191: 4883.8075 | AH191: 27216.44444 | AI191: 58969.35 | AJ191: 9126.913889 | AK191: 2462.774722 | AL191: 11 | AM191: 149690.4444
A192: 2020-01-04T23:30:00 | B192: 73.8 | C192: 73 | D192: 11.6 | E192: 73 | F192: 10.22 | G192: 72 | H192: 2.01 | I192: 71 | J192: 0.488 | K192: 0.8 | L192: 0.8 | M192: 57.8 | N192: 1.8 | O192: 2.8 | P192: 3.222222222 | Q192: 2.838888889 | R192: 0.5583333333 | S192: 0.1355555556 | T192: 10775.11111 | U192: 9493.244444 | V192: 4200.9 | W192: 1586.542222 | X192: 60.8 | Y192: 60.8 | Z192: 61.8 | AA192: 62.8 | AB192: 73.8 | AC192: 62.8 | AD192: 37712.88889 | AE192: 69419.35 | AF192: 13652.925 | AG192: 3314.74 | AH192: 26937.77778 | AI192: 59926.10556 | AJ192: 9452.025 | AK192: 1728.197778 | AL192: 11 | AM192: 148157.7778
A193: 2020-01-04T23:45:00 | B193: 73.5 | C193: 73 | D193: 11.37 | E193: 73 | F193: 10.31 | G193: 72 | H193: 2.07 | I193: 71 | J193: 0.972 | K193: 0.5 | L193: 0.5 | M193: 57.5 | N193: 1.5 | O193: 2.5 | P193: 3.158333333 | Q193: 2.863888889 | R193: 0.575 | S193: 0.27 | T193: 6600.916667 | U193: 5985.527778 | V193: 3605.25 | W193: 2821.5 | X193: 60.5 | Y193: 60.5 | Z193: 61.5 | AA193: 62.5 | AB193: 73.5 | AC193: 62.5 | AD193: 33004.58333 | AE193: 70030.675 | AF193: 14060.475 | AG193: 6602.31 | AH193: 26403.66667 | AI193: 64045.14722 | AJ193: 10455.225 | AK193: 3780.81 | AL193: 11 | AM193: 145220.1667
A194: 2020-01-05 | B194: 74 | C194: 73 | D194: 11.46 | E194: 73 | F194: 10.22 | G194: 72 | H194: 2.15 | I194: 71 | J194: 0.483 | K194: 1 | L194: 1 | M194: 58 | N194: 2 | O194: 3 | P194: 3.183333333 | Q194: 2.838888889 | R194: 0.5972222222 | S194: 0.1341666667 | T194: 13306.33333 | U194: 11866.55556 | V194: 4992.777778 | W194: 1682.45 | X194: 61 | Y194: 61 | Z194: 62 | AA194: 63 | AB194: 74 | AC194: 63 | AD194: 39919 | AE194: 69419.35 | AF194: 14603.875 | AG194: 3280.7775 | AH194: 26612.66667 | AI194: 57552.79444 | AJ194: 9611.097222 | AK194: 1598.3275 | AL194: 11 | AM194: 146369.6667
A195: 2020-01-05T00:15:00 | B195: 73.6 | C195: 72 | D195: 11.45 | E195: 73 | F195: 10.15 | G195: 72 | H195: 2.23 | I195: 71 | J195: 0.544 | K195: 1.6 | L195: 0.6 | M195: 57.6 | N195: 1.6 | O195: 2.6 | P195: =D195*1000/3600 -> 3.180555556 | Q195: =F195*1000/3600 -> 2.819444444 | R195: =H195*1000/3600 -> 0.6194444444 | S195: =J195*1000/3600 -> 0.1511111111 | T195: =P195*4180*K195 -> 21271.55556 | U195: =Q195*4180*L195 -> 7071.166667 | V195: =R195*4180*N195 -> 4142.844444 | W195: =S195*4180*O195 -> 1642.275556 | X195: =(T195/(P195*4180))+60 -> 61.6 | Y195: =(U195/(Q195*4180))+60 -> 60.6 | Z195: 61.6 | AA195: =(W195/(S195*4180))+60 -> 62.6 | AB195: =B195 -> 73.6 | AC195: =MAX(X195:AA195) -> 62.6 | AD195: =P195*4180*(AC195-60) -> 34566.27778 | AE195: =Q195*4180*($AC$2-60) -> 68943.875 | AF195: =R195*4180*($AC$2-60) -> 15147.275 | AG195: 3695.12 | AH195: =AD195-T195 -> 13294.72222 | AI195: =AE195-U195 -> 61872.70833 | AJ195: =AF195-V195 -> 11004.43056 | AK195: =AG195-W195 -> 2052.844444 | AL195: =AB195-AC195 -> 11 | AM195: =P195*4180*(AB195-AC195) -> 146241.9444
A196: 2020-01-05T00:30:00 | B196: 74.1 | C196: 73 | D196: 11.21 | E196: 72 | F196: 10.16 | G196: 72 | H196: 2.21 | I196: 71 | J196: 0.513 | K196: 1.1 | L196: 2.1 | M196: 58.1 | N196: 2.1 | O196: 3.1 | P196: 3.113888889 | Q196: 2.822222222 | R196: 0.6138888889 | S196: 0.1425 | T196: 14317.66111 | U196: 24773.46667 | V196: 5388.716667 | W196: 1846.515 | X196: 61.1 | Y196: 62.1 | Z196: 62.1 | AA196: 63.1 | AB196: 74.1 | AC196: 63.1 | AD196: 40349.77222 | AE196: 69011.8 | AF196: 15011.425 | AG196: 3484.5525 | AH196: 26032.11111 | AI196: 44238.33333 | AJ196: 9622.708333 | AK196: 1638.0375 | AL196: 11 | AM196: 143176.6111
A197: 2020-01-05T00:45:00 | B197: 73.9 | C197: 73 | D197: 10.97 | E197: 73 | F197: 9.8 | G197: 72 | H197: 2.17 | I197: 71 | J197: 0.618 | K197: 0.9 | L197: 0.9 | M197: 57.9 | N197: 1.9 | O197: 2.9 | P197: 3.047222222 | Q197: 2.722222222 | R197: 0.6027777778 | S197: 0.1716666667 | T197: 11463.65 | U197: 10241 | V197: 4787.261111 | W197: 2080.943333 | X197: 60.9 | Y197: 60.9 | Z197: 61.9 | AA197: 62.9 | AB197: 73.9 | AC197: 62.9 | AD197: 36938.42778 | AE197: 66566.5 | AF197: 14739.725 | AG197: 4197.765 | AH197: 25474.77778 | AI197: 56325.5 | AJ197: 9952.463889 | AK197: 2116.821667 | AL197: 11 | AM197: 140111.2778
A198: 2020-01-05T01:00:00 | B198: 73.9 | C198: 73 | D198: 10.88 | E198: 73 | F198: 9.94 | G198: 72 | H198: 2.18 | I198: 71 | J198: 0.583 | K198: 0.9 | L198: 0.9 | M198: 57.9 | N198: 1.9 | O198: 2.9 | P198: 3.022222222 | Q198: 2.761111111 | R198: 0.6055555556 | S198: 0.1619444444 | T198: 11369.6 | U198: 10387.3 | V198: 4809.322222 | W198: 1963.090556 | X198: 60.9 | Y198: 60.9 | Z198: 61.9 | AA198: 62.9 | AB198: 73.9 | AC198: 62.9 | AD198: 36635.37778 | AE198: 67517.45 | AF198: 14807.65 | AG198: 3960.0275 | AH198: 25265.77778 | AI198: 57130.15 | AJ198: 9998.327778 | AK198: 1996.936944 | AL198: 11 | AM198: 138961.7778
A199: 2020-01-05T01:15:00 | B199: 74.1 | C199: 73 | D199: 10.87 | E199: 73 | F199: 9.42 | G199: 72 | H199: 2.23 | I199: 71 | J199: 1.017 | K199: 1.1 | L199: 1.1 | M199: 58.1 | N199: 2.1 | O199: 3.1 | P199: 3.019444444 | Q199: 2.616666667 | R199: 0.6194444444 | S199: 0.2825 | T199: 13883.40556 | U199: 12031.43333 | V199: 5437.483333 | W199: 3660.635 | X199: 61.1 | Y199: 61.1 | Z199: 62.1 | AA199: 63.1 | AB199: 74.1 | AC199: 63.1 | AD199: 39125.96111 | AE199: 63985.35 | AF199: 15147.275 | AG199: 6907.9725 | AH199: 25242.55556 | AI199: 51953.91667 | AJ199: 9709.791667 | AK199: 3247.3375 | AL199: 11 | AM199: 138834.0556
A200: 2020-01-05T01:30:00 | B200: 74.1 | C200: 73 | D200: 10.76 | E200: 73 | F200: 9.38 | G200: 72 | H200: 2.27 | I200: 71 | J200: 1.035 | K200: 1.1 | L200: 1.1 | M200: 58.1 | N200: 2.1 | O200: 3.1 | P200: 2.988888889 | Q200: 2.605555556 | R200: 0.6305555556 | S200: 0.2875 | T200: 13742.91111 | U200: 11980.34444 | V200: 5535.016667 | W200: 3725.425 | X200: 61.1 | Y200: 61.1 | Z200: 62.1 | AA200: 63.1 | AB200: 74.1 | AC200: 63.1 | AD200: 38730.02222 | AE200: 63713.65 | AF200: 15418.975 | AG200: 7030.2375 | AH200: 24987.11111 | AI200: 51733.30556 | AJ200: 9883.958333 | AK200: 3304.8125 | AL200: 11 | AM200: 137429.1111
... 2050 more rows
